Workbook

Sheet TRY (hidden)
A1: Potřeba tepla pro ohřev venkovního vzduchu | H1: ti | I1: °C | L1: 22 | M1: tekv | N1: 13 | P1: bez uvažování tepelných zisků | U1: ZZT | V1: Kč/GJ | W1: 0 | X1: 50 | Y1: 60 | Z1: 67 | AA1: 80 | AB1: 90 | AC1: 100 | AF1: POMOC
A2: TRY | C2: Den | D2: od | E2: 1 | H2: Počet žáků | I2: žáků | L2: 27 | U2: Náklady za rok | V2: 300 | W2: =+L$7*$V2 -> 1840.253774 | X2: 920.1268872 | Y2: 736.1015098 | Z2: 607.2837456 | AA2: 368.0507549 | AB2: 184.0253774 | AC2: 0 | AD2: na třídu
D3: do | E3: 5 | H3: Dávka vzduchu | I3: m3/h.os | L3: 12 | V3: 400 | W3: 2453.671699 | X3: 1226.83585 | Y3: 981.4686797 | Z3: 809.7116607 | AA3: 490.7343398 | AB3: 245.3671699 | AC3: 0
H4: Průtok vzduchu | I4: m3/h | L4: =+L2*L3 -> 324 | P4: =+W12/N5 -> 2.361111111 | V4: 500 | W4: 3067.089624 | X4: 1533.544812 | Y4: 1226.83585 | Z4: 1012.139576 | AA4: 613.4179248 | AB4: 306.7089624 | AC4: 0
C5: Hodina | D5: od | E5: 8 | H5: Cena za GJ | I5: Kč/GJ | L5: 500 | M5: tj. | N5: =+N8/N6 -> 1.8 | O5: Kč/kWh | P5: teplo 3x levnější než elektrika | V5: 600 | W5: 3680.507549 | X5: 1840.253774 | Y5: 1472.20302 | Z5: 1214.567491 | AA5: 736.1015098 | AB5: 368.0507549 | AC5: 0
D6: do | E6: 13 | H6: Potřeba tepla | I6: kWh/rok | L6: =SUM(L14:L7284)/1000 -> 1703.93868 | M6: 851.96934 | N6: 681.575472 | O6: 562.2997644 | P6: 340.787736 | Q6: 170.393868 | R6: 0 | V6: 700 | W6: 4293.925474 | X6: 2146.962737 | Y6: 1717.570189 | Z6: 1416.995406 | AA6: 858.7850947 | AB6: 429.3925474 | AC6: 0
H7: Potřeba tepla | I7: GJ/rok | L7: =L6/1000000*3600 -> 6.134179248 | M7: =M6/1000000*3600 -> 3.067089624 | N7: 2.453671699 | O7: 2.024279152 | P7: 1.22683585 | Q7: 0.6134179248 | R7: 0 | V7: 800 | W7: 4907.343398 | X7: 2453.671699 | Y7: 1962.937359 | Z7: 1619.423321 | AA7: 981.4686797 | AB7: 490.7343398 | AC7: 0
C8: Měsíc | D8: od | E8: =+IF(E7=1,5,1) -> 1 | F8: 9 | H8: Náklady za rok | I8: Kč/rok | L8: =+L7*$L$5 -> 3067.089624 | M8: =+M7*$L$5 -> 1533.544812 | N8: 1226.83585 | O8: 1012.139576 | P8: 613.4179248 | Q8: 306.7089624 | R8: 0
D9: do | E9: 6 | F9: 12 | H9: Náklady na žáka | I9: Kč/žáka.rok | L9: =+L8/$L$2 -> 113.595912 | M9: 56.797956 | N9: 45.4383648 | O9: 37.48665096 | P9: 22.7191824 | Q9: 11.3595912 | R9: 0
H10: Tepelná ztráta větráním | I10: kW | L10: =+MAX(L14:L7284)/1000 -> 3.948696 | M10: =+MAX(M14:M7284)/1000 -> 1.974348 | N10: 1.5794784 | O10: 1.30306968 | P10: 0.7897392 | Q10: 0.3948696 | R10: 3.875300081e-16
I11: MIN | K11: - | L11: 0 | M11: 50 | N11: 60 | O11: 67 | P11: 80 | Q11: 90 | R11: 100 | U11: Potřeba elektrické energie pro jednotku
I12: =+MIN(I14:I6996) -> -16.7 | J12: =+MIN(J14:J6996) -> -14.2 | S12: 85 | U12: Cena za kWh | V12: Kč/kWh | W12: 4.25
C13: Date | D13: M | E13: D | F13: H | G13: DT | H13: Den v týdnu | I13: te | K13: V [m3/h] | L13: Q [W] | M13: Q [W] | N13: Q [W] | O13: Q [W] | P13: Q [W] | Q13: Q [W] | R13: Q [W] | U13: doba provozu | V13: h | W13: =+COUNT(K14:K6996) -> 872
A14: 00:30:00 | B14: 1999-01-01 | C14: =B14+A14 -> 1999-01-01T00:30:00 | D14: 1 | E14: 1 | F14: 1 | G14: =WEEKDAY(C14-1) -> 5 | H14: =IF(G14=6,"víkend",IF(G14=7,"víkend","všední")) -> všední | I14: -4.55 | J14: =+IF(K14="","",I14) ->  | K14: =IF(H14="víkend","",IF(I14>18,0,IF(OR(F14<$E$5,F14>$E$6),"",$L$4))) ->  | L14: =IF($K14="",0,$K14/3600*1.2*1010*($L$1-(L$11*($L$1-$I14)+$I14))) -> 0 | M14: =IF($K14="",0,$K14/3600*1.2*1010*($L$1-(M$11/100*($L$1-$I14)+$I14))) -> 0 | N14: 0 | O14: 0 | P14: 0 | Q14: 0 | R14: 0 | S14: -4.55 | U14: SFP | V14: W.s/m3 | W14: 0 | X14: 1000 | Y14: 2000 | Z14: 3000 | AA14: 4000 | AB14: 5000
C15: =C14+1/24 -> 1999-01-01T01:30:00 | D15: 1 | E15: 1 | F15: 2 | G15: =WEEKDAY(C15-1) -> 5 | H15: =IF(G15=6,"víkend",IF(G15=7,"víkend","všední")) -> všední | I15: -5.85 | J15: =+IF(K15="","",I15) ->  | K15: =IF(H15="víkend","",IF(I15>18,0,IF(OR(F15<$E$5,F15>$E$6),"",$L$4))) ->  | L15: 0 | M15: 0 | N15: 0 | O15: 0 | P15: 0 | Q15: 0 | R15: 0 | S15: -5.8 | U15: Potřeba el. energie | V15: kWh/rok | W15: =+W14*$L$4/3600*$W$13/1000 -> 0 | X15: 78.48 | Y15: 156.96 | Z15: 235.44 | AA15: 313.92 | AB15: 392.4
C16: =C15+1/24 -> 1999-01-01T02:30:00 | D16: 1 | E16: 1 | F16: 3 | G16: 5 | H16: všední | I16: -6 | L16: 0 | M16: 0 | N16: 0 | O16: 0 | P16: 0 | Q16: 0 | R16: 0 | S16: -5.9 | U16: Náklady | V16: Kč/rok | W16: =+W15*$W$12 -> 0 | X16: 333.54 | Y16: 667.08 | Z16: 1000.62 | AA16: 1334.16 | AB16: 1667.7
C17: 1999-01-01T03:30:00 | D17: 1 | E17: 1 | F17: 4 | G17: 5 | H17: všední | I17: -6.35 | L17: 0 | M17: 0 | N17: 0 | O17: 0 | P17: 0 | Q17: 0 | R17: 0 | S17: -6.1 | U17: Náklady na žáka | V17: Kč/rok na žáka | W17: 0 | X17: =+X16/25 -> 13.3416 | Y17: =+Y16/25 -> 26.6832 | Z17: =+Z16/25 -> 40.0248 | AA17: =+AA16/25 -> 53.3664 | AB17: =+AB16/25 -> 66.708
C18: 1999-01-01T04:30:00 | D18: 1 | E18: 1 | F18: 5 | G18: 5 | H18: všední | I18: -6.6 | L18: 0 | M18: 0 | N18: 0 | O18: 0 | P18: 0 | Q18: 0 | R18: 0 | S18: -6.6
C19: 1999-01-01T05:30:00 | D19: 1 | E19: 1 | F19: 6 | G19: 5 | H19: všední | I19: -6.7 | L19: 0 | M19: 0 | N19: 0 | O19: 0 | P19: 0 | Q19: 0 | R19: 0 | S19: -6.6 | U19: CELKOVĚ PO ODEČTENÍ TEP. ZISKŮ VENTILÁTORU
C20: 1999-01-01T06:30:00 | D20: 1 | E20: 1 | F20: 7 | G20: 5 | H20: všední | I20: -6.9 | L20: 0 | M20: 0 | N20: 0 | O20: 0 | P20: 0 | Q20: 0 | R20: 0 | S20: -6.8 | U20: ZZT | V20: - | W20: 0 | X20: 50 | Y20: 60 | Z20: 67 | AA20: 80 | AB20: 90 | AC20: 100
C21: 1999-01-01T07:30:00 | D21: 1 | E21: 1 | F21: 8 | G21: 5 | H21: všední | I21: -6.95 | J21: -6.95 | K21: =IF(H21="víkend","",IF(I21>$N$1,"",IF(OR(F21<$E$5,F21>$E$6),"",$L$4))) -> 324 | L21: 3157.866 | M21: 1578.933 | N21: 1263.1464 | O21: 1042.09578 | P21: 631.5732 | Q21: 315.7866 | R21: 0 | S21: -7 | U21: Potřeba tepla | V21: SFP
C22: 1999-01-01T08:30:00 | D22: 1 | E22: 1 | F22: 9 | G22: 5 | H22: všední | I22: -6.75 | J22: -6.75 | K22: =IF(H22="víkend","",IF(I22>$N$1,"",IF(OR(F22<$E$5,F22>$E$6),"",$L$4))) -> 324 | L22: 3136.05 | M22: 1568.025 | N22: 1254.42 | O22: 1034.8965 | P22: 627.21 | Q22: 313.605 | R22: 0 | S22: -6.9 | V22: 0 | W22: =IF(L$6-$V22*$L$4/3600/2*$W$13/1000<0,0,L$6-$V22*$L$4/3600/2*$W$13/1000) -> 1703.93868 | X22: 851.96934 | Y22: 681.575472 | Z22: 562.2997644 | AA22: 340.787736 | AB22: 170.393868 | AC22: 0
C23: 1999-01-01T09:30:00 | D23: 1 | E23: 1 | F23: 10 | G23: 5 | H23: všední | I23: -6.45 | J23: -6.45 | K23: 324 | L23: 3103.326 | M23: 1551.663 | N23: 1241.3304 | O23: 1024.09758 | P23: 620.6652 | Q23: 310.3326 | R23: 0 | S23: -6.6 | V23: 1000 | W23: 1664.69868 | X23: 812.72934 | Y23: 642.335472 | Z23: 523.0597644 | AA23: 301.547736 | AB23: 131.153868 | AC23: 0
C24: 1999-01-01T10:30:00 | D24: 1 | E24: 1 | F24: 11 | G24: 5 | H24: všední | I24: -5.85 | J24: -5.85 | K24: 324 | L24: 3037.878 | M24: =IF($K24="",0,$K24/3600*1.2*1010*($L$1-(M$11/100*($L$1-$I24)+$I24))) -> 1518.939 | N24: 1215.1512 | O24: 1002.49974 | P24: 607.5756 | Q24: 303.7878 | R24: 0 | S24: -6.3 | V24: 2000 | W24: 1625.45868 | X24: 773.48934 | Y24: 603.095472 | Z24: 483.8197644 | AA24: 262.307736 | AB24: 91.913868 | AC24: 0
C25: 1999-01-01T11:30:00 | D25: 1 | E25: 1 | F25: 12 | G25: 5 | H25: všední | I25: -5.55 | J25: -5.55 | K25: 324 | L25: 3005.154 | M25: 1502.577 | N25: 1202.0616 | O25: 991.70082 | P25: 601.0308 | Q25: 300.5154 | R25: 0 | S25: -5.4 | V25: 3000 | W25: 1586.21868 | X25: 734.24934 | Y25: 563.855472 | Z25: 444.5797644 | AA25: 223.067736 | AB25: 52.673868 | AC25: 0
C26: 1999-01-01T12:30:00 | D26: 1 | E26: 1 | F26: 13 | G26: 5 | H26: všední | I26: -5.6 | J26: -5.6 | K26: 324 | L26: 3010.608 | M26: 1505.304 | N26: 1204.2432 | O26: 993.50064 | P26: 602.1216 | Q26: 301.0608 | R26: 0 | S26: -5.7 | V26: 4000 | W26: 1546.97868 | X26: 695.00934 | Y26: 524.615472 | Z26: 405.3397644 | AA26: 183.827736 | AB26: 13.433868 | AC26: 0
C27: 1999-01-01T13:30:00 | D27: 1 | E27: 1 | F27: 14 | G27: 5 | H27: všední | I27: -5.5 | L27: 0 | M27: 0 | N27: 0 | O27: 0 | P27: 0 | Q27: 0 | R27: 0 | S27: -5.5 | V27: 5000 | W27: 1507.73868 | X27: 655.76934 | Y27: 485.375472 | Z27: 366.0997644 | AA27: 144.587736 | AB27: 0 | AC27: 0
C28: 1999-01-01T14:30:00 | D28: 1 | E28: 1 | F28: 15 | G28: 5 | H28: všední | I28: -5.55 | L28: 0 | M28: 0 | N28: 0 | O28: 0 | P28: 0 | Q28: 0 | R28: 0 | S28: -5.5
C29: 1999-01-01T15:30:00 | D29: 1 | E29: 1 | F29: 16 | G29: 5 | H29: všední | I29: -5.35 | L29: 0 | M29: 0 | N29: 0 | O29: 0 | P29: 0 | Q29: 0 | R29: 0 | S29: -5.6 | U29: Celkové náklady | V29: SFP
C30: 1999-01-01T16:30:00 | D30: 1 | E30: 1 | F30: 17 | G30: 5 | H30: všední | I30: -5.05 | L30: 0 | M30: 0 | N30: 0 | O30: 0 | P30: 0 | Q30: 0 | R30: 0 | S30: -5.1 | U30: na 1 žáka | V30: 0 | W30: =W22/1000000*3600*$L$5/25+$W16 -> 122.683585 | X30: 61.34179248 | Y30: 49.07343398 | Z30: 40.48558304 | AA30: 24.53671699 | AB30: 12.2683585 | AC30: 0
C31: 1999-01-01T17:30:00 | D31: 1 | E31: 1 | F31: 18 | G31: 5 | H31: všední | I31: -4.95 | L31: 0 | M31: 0 | N31: 0 | O31: 0 | P31: 0 | Q31: 0 | R31: 0 | S31: -5 | V31: 1000 | W31: =W23/1000000*3600*$L$5/25+$X17 -> 133.199905 | X31: 71.85811248 | Y31: 59.58975398 | Z31: 51.00190304 | AA31: 35.05303699 | AB31: 22.7846785 | AC31: 13.3416
C32: 1999-01-01T18:30:00 | D32: 1 | E32: 1 | F32: 19 | G32: 5 | H32: všední | I32: -4.7 | L32: 0 | M32: 0 | N32: 0 | O32: 0 | P32: 0 | Q32: 0 | R32: 0 | S32: -4.9 | V32: 2000 | W32: =W24/1000000*3600*$L$5/25+$Y17 -> 143.716225 | X32: 82.37443248 | Y32: 70.10607398 | Z32: 61.51822304 | AA32: 45.56935699 | AB32: 33.3009985 | AC32: 26.6832
C33: 1999-01-01T19:30:00 | D33: 1 | E33: 1 | F33: 20 | G33: 5 | H33: všední | I33: -4.55 | L33: 0 | M33: 0 | N33: 0 | O33: 0 | P33: 0 | Q33: 0 | R33: 0 | S33: -4.5 | V33: 3000 | W33: =W25/1000000*3600*$L$5/25+$Z17 -> 154.232545 | X33: 92.89075248 | Y33: 80.62239398 | Z33: 72.03454304 | AA33: 56.08567699 | AB33: 43.8173185 | AC33: 40.0248
C34: 1999-01-01T20:30:00 | D34: 1 | E34: 1 | F34: 21 | G34: 5 | H34: všední | I34: -4.4 | L34: 0 | M34: =IF($K34="",0,$K34/3600*1.2*1010*($L$1-(M$11/100*($L$1-$I34)+$I34))) -> 0 | N34: 0 | O34: 0 | P34: 0 | Q34: 0 | R34: 0 | S34: -4.6 | V34: 4000 | W34: =W26/1000000*3600*$L$5/25+$AA17 -> 164.748865 | X34: 103.4070725 | Y34: 91.13871398 | Z34: 82.55086304 | AA34: 66.60199699 | AB34: 54.3336385 | AC34: 53.3664
C35: 1999-01-01T21:30:00 | D35: 1 | E35: 1 | F35: 22 | G35: 5 | H35: všední | I35: -4.3 | L35: 0 | M35: 0 | N35: 0 | O35: 0 | P35: 0 | Q35: 0 | R35: 0 | S35: -4.2 | V35: 5000 | W35: =W27/1000000*3600*$L$5/25+$AB17 -> 175.265185 | X35: 113.9233925 | Y35: 101.655034 | Z35: 93.06718304 | AA35: 77.11831699 | AB35: 66.708 | AC35: 66.708
C36: 1999-01-01T22:30:00 | D36: 1 | E36: 1 | F36: 23 | G36: 5 | H36: všední | I36: -4.5 | L36: 0 | M36: 0 | N36: 0 | O36: 0 | P36: 0 | Q36: 0 | R36: 0 | S36: -4.4
C37: 1999-01-01T23:30:00 | D37: 1 | E37: 1 | F37: 24 | G37: 5 | H37: všední | I37: -4.7 | L37: 0 | M37: 0 | N37: 0 | O37: 0 | P37: 0 | Q37: 0 | R37: 0 | S37: -4.6 | U37: Celkové náklady | V37: SFP
C38: 1999-01-02T00:30:00 | D38: 1 | E38: 2 | F38: =F14 -> 1 | G38: 6 | H38: víkend | I38: -5 | L38: 0 | M38: 0 | N38: 0 | O38: 0 | P38: 0 | Q38: 0 | R38: 0 | S38: -4.8 | U38: na 1 třídu | V38: 0 | W38: =+W30*25 -> 3067.089624 | X38: =+X30*25 -> 1533.544812 | Y38: 1226.83585 | Z38: 1012.139576 | AA38: 613.4179248 | AB38: 306.7089624 | AC38: 0
C39: 1999-01-02T01:30:00 | D39: 1 | E39: 2 | F39: =F15 -> 2 | G39: 6 | H39: víkend | I39: -5.35 | L39: 0 | M39: 0 | N39: 0 | O39: 0 | P39: 0 | Q39: 0 | R39: 0 | S39: -5.2 | V39: 1000 | W39: =+W31*25 -> 3329.997624 | X39: 1796.452812 | Y39: 1489.74385 | Z39: 1275.047576 | AA39: 876.3259248 | AB39: 569.6169624 | AC39: 333.54
C40: 1999-01-02T02:30:00 | D40: 1 | E40: 2 | F40: 3 | G40: 6 | H40: víkend | I40: -5.7 | L40: 0 | M40: 0 | N40: 0 | O40: 0 | P40: 0 | Q40: 0 | R40: 0 | S40: -5.5 | V40: 2000 | W40: 3592.905624 | X40: 2059.360812 | Y40: 1752.65185 | Z40: 1537.955576 | AA40: 1139.233925 | AB40: 832.5249624 | AC40: 667.08
C41: 1999-01-02T03:30:00 | D41: 1 | E41: 2 | F41: 4 | G41: 6 | H41: víkend | I41: -6.3 | L41: 0 | M41: 0 | N41: 0 | O41: 0 | P41: 0 | Q41: 0 | R41: 0 | S41: -5.9 | V41: 3000 | W41: 3855.813624 | X41: 2322.268812 | Y41: 2015.55985 | Z41: 1800.863576 | AA41: 1402.141925 | AB41: 1095.432962 | AC41: 1000.62
C42: 1999-01-02T04:30:00 | D42: 1 | E42: 2 | F42: 5 | G42: 6 | H42: víkend | I42: -6.7 | L42: 0 | M42: 0 | N42: 0 | O42: 0 | P42: 0 | Q42: 0 | R42: 0 | S42: -6.7 | V42: 4000 | W42: 4118.721624 | X42: 2585.176812 | Y42: 2278.46785 | Z42: 2063.771576 | AA42: 1665.049925 | AB42: 1358.340962 | AC42: 1334.16
C43: 1999-01-02T05:30:00 | D43: 1 | E43: 2 | F43: 6 | G43: 6 | H43: víkend | I43: -6.65 | L43: 0 | M43: 0 | N43: 0 | O43: 0 | P43: 0 | Q43: 0 | R43: 0 | S43: -6.7 | V43: 5000 | W43: 4381.629624 | X43: 2848.084812 | Y43: 2541.37585 | Z43: 2326.679576 | AA43: 1927.957925 | AB43: 1667.7 | AC43: 1667.7
C44: 1999-01-02T06:30:00 | D44: 1 | E44: 2 | F44: 7 | G44: 6 | H44: víkend | I44: -6.65 | L44: 0 | M44: =IF($K44="",0,$K44/3600*1.2*1010*($L$1-(M$11/100*($L$1-$I44)+$I44))) -> 0 | N44: 0 | O44: 0 | P44: 0 | Q44: 0 | R44: 0 | S44: -6.6
C45: 1999-01-02T07:30:00 | D45: 1 | E45: 2 | F45: 8 | G45: 6 | H45: víkend | I45: -6.45 | L45: 0 | M45: 0 | N45: 0 | O45: 0 | P45: 0 | Q45: 0 | R45: 0 | S45: -6.7
C46: 1999-01-02T08:30:00 | D46: 1 | E46: 2 | F46: 9 | G46: 6 | H46: víkend | I46: -5.6 | L46: 0 | M46: 0 | N46: 0 | O46: 0 | P46: 0 | Q46: 0 | R46: 0 | S46: -6.2 | U46: V = variable | V46: m3/h.os
C47: 1999-01-02T09:30:00 | D47: 1 | E47: 2 | F47: 10 | G47: 6 | H47: víkend | I47: -4.95 | L47: 0 | M47: 0 | N47: 0 | O47: 0 | P47: 0 | Q47: 0 | R47: 0 | S47: -5 | U47: Potřeba tepla | W47: 0 | X47: 50 | Y47: 60 | Z47: 67 | AA47: 80 | AB47: 90 | AC47: 100
C48: 1999-01-02T10:30:00 | D48: 1 | E48: 2 | F48: 11 | G48: 6 | H48: víkend | I48: -4.25 | L48: 0 | M48: 0 | N48: 0 | O48: 0 | P48: 0 | Q48: 0 | R48: 0 | S48: -4.9 | AD48: kWh/rok
C49: 1999-01-02T11:30:00 | D49: 1 | E49: 2 | F49: 12 | G49: 6 | H49: víkend | I49: -3.05 | L49: 0 | M49: 0 | N49: 0 | O49: 0 | P49: 0 | Q49: 0 | R49: 0 | S49: -3.6 | V49: 12 | W49: =+L6 -> 1703.93868 | X49: 851.96934 | Y49: 681.575472 | Z49: 562.2997644 | AA49: 340.787736 | AB49: 170.393868 | AC49: 0 | AD49: kWh/rok
C50: 1999-01-02T12:30:00 | D50: 1 | E50: 2 | F50: 13 | G50: 6 | H50: víkend | I50: -2.1 | L50: 0 | M50: 0 | N50: 0 | O50: 0 | P50: 0 | Q50: 0 | R50: 0 | S50: -2.5 | AD50: kWh/rok
C51: 1999-01-02T13:30:00 | D51: 1 | E51: 2 | F51: 14 | G51: 6 | H51: víkend | I51: -1.45 | L51: 0 | M51: 0 | N51: 0 | O51: 0 | P51: 0 | Q51: 0 | R51: 0 | S51: -1.7
C52: 1999-01-02T14:30:00 | D52: 1 | E52: 2 | F52: 15 | G52: 6 | H52: víkend | I52: -1.1 | L52: 0 | M52: 0 | N52: 0 | O52: 0 | P52: 0 | Q52: 0 | R52: 0 | S52: -1.2 | U52: Potřeba el. energie | V52: SFP | W52: 0 | X52: 1000 | Y52: 2000 | Z52: 3000 | AA52: 4000 | AB52: 5000
C53: 1999-01-02T15:30:00 | D53: 1 | E53: 2 | F53: 16 | G53: 6 | H53: víkend | I53: -0.85 | L53: 0 | M53: 0 | N53: 0 | O53: 0 | P53: 0 | Q53: 0 | R53: 0 | S53: -1 | V53: 10 | W53: =+W54/2 -> 0 | X53: 39.24 | Y53: 78.48 | Z53: 117.72 | AA53: 156.96 | AB53: 196.2
C54: 1999-01-02T16:30:00 | D54: 1 | E54: 2 | F54: 17 | G54: 6 | H54: víkend | I54: -0.6 | L54: 0 | M54: =IF($K54="",0,$K54/3600*1.2*1010*($L$1-(M$11/100*($L$1-$I54)+$I54))) -> 0 | N54: 0 | O54: 0 | P54: 0 | Q54: 0 | R54: 0 | S54: -0.7 | V54: 20 | W54: =+W15 -> 0 | X54: 78.48 | Y54: 156.96 | Z54: 235.44 | AA54: 313.92 | AB54: 392.4
C55: 1999-01-02T17:30:00 | D55: 1 | E55: 2 | F55: 18 | G55: 6 | H55: víkend | I55: -0.45 | L55: 0 | M55: 0 | N55: 0 | O55: 0 | P55: 0 | Q55: 0 | R55: 0 | S55: -0.5 | V55: 30 | W55: =+W54*1.5 -> 0 | X55: 117.72 | Y55: 235.44 | Z55: 353.16 | AA55: 470.88 | AB55: 588.6
C56: 1999-01-02T18:30:00 | D56: 1 | E56: 2 | F56: 19 | G56: 6 | H56: víkend | I56: -0.3 | L56: 0 | M56: 0 | N56: 0 | O56: 0 | P56: 0 | Q56: 0 | R56: 0 | S56: -0.4 | V56: 0 | W56: 0 | X56: 0 | Y56: 0 | Z56: 0 | AA56: 0 | AB56: 0
C57: 1999-01-02T19:30:00 | D57: 1 | E57: 2 | F57: 20 | G57: 6 | H57: víkend | I57: -0.2 | L57: 0 | M57: 0 | N57: 0 | O57: 0 | P57: 0 | Q57: 0 | R57: 0 | S57: -0.2
C58: 1999-01-02T20:30:00 | D58: 1 | E58: 2 | F58: 21 | G58: 6 | H58: víkend | I58: -0.15 | L58: 0 | M58: 0 | N58: 0 | O58: 0 | P58: 0 | Q58: 0 | R58: 0 | S58: -0.2
C59: 1999-01-02T21:30:00 | D59: 1 | E59: 2 | F59: 22 | G59: 6 | H59: víkend | I59: 0 | L59: 0 | M59: 0 | N59: 0 | O59: 0 | P59: 0 | Q59: 0 | R59: 0 | S59: -0.1
C60: 1999-01-02T22:30:00 | D60: 1 | E60: 2 | F60: 23 | G60: 6 | H60: víkend | I60: 0.2 | L60: 0 | M60: 0 | N60: 0 | O60: 0 | P60: 0 | Q60: 0 | R60: 0 | S60: 0.1
C61: 1999-01-02T23:30:00 | D61: 1 | E61: 2 | F61: 24 | G61: 6 | H61: víkend | I61: 0.4 | L61: 0 | M61: 0 | N61: 0 | O61: 0 | P61: 0 | Q61: 0 | R61: 0 | S61: 0.3
C62: 1999-01-03T00:30:00 | D62: 1 | E62: 3 | F62: 1 | G62: 7 | H62: víkend | I62: 0.45 | L62: 0 | M62: 0 | N62: 0 | O62: 0 | P62: 0 | Q62: 0 | R62: 0 | S62: 0.5
C63: 1999-01-03T01:30:00 | D63: 1 | E63: 3 | F63: 2 | G63: 7 | H63: víkend | I63: 0.3 | L63: 0 | M63: 0 | N63: 0 | O63: 0 | P63: 0 | Q63: 0 | R63: 0 | S63: 0.4
C64: 1999-01-03T02:30:00 | D64: 1 | E64: 3 | F64: 3 | G64: 7 | H64: víkend | I64: 0.15 | L64: 0 | M64: =IF($K64="",0,$K64/3600*1.2*1010*($L$1-(M$11/100*($L$1-$I64)+$I64))) -> 0 | N64: 0 | O64: 0 | P64: 0 | Q64: 0 | R64: 0 | S64: 0.2
C65: 1999-01-03T03:30:00 | D65: 1 | E65: 3 | F65: 4 | G65: 7 | H65: víkend | I65: 0.25 | L65: 0 | M65: 0 | N65: 0 | O65: 0 | P65: 0 | Q65: 0 | R65: 0 | S65: 0.1
C66: 1999-01-03T04:30:00 | D66: 1 | E66: 3 | F66: 5 | G66: 7 | H66: víkend | I66: 0.5 | L66: 0 | M66: 0 | N66: 0 | O66: 0 | P66: 0 | Q66: 0 | R66: 0 | S66: 0.4
C67: 1999-01-03T05:30:00 | D67: 1 | E67: 3 | F67: 6 | G67: 7 | H67: víkend | I67: 0.65 | L67: 0 | M67: 0 | N67: 0 | O67: 0 | P67: 0 | Q67: 0 | R67: 0 | S67: 0.6
C68: 1999-01-03T06:30:00 | D68: 1 | E68: 3 | F68: 7 | G68: 7 | H68: víkend | I68: 1 | L68: 0 | M68: 0 | N68: 0 | O68: 0 | P68: 0 | Q68: 0 | R68: 0 | S68: 0.7
C69: 1999-01-03T07:30:00 | D69: 1 | E69: 3 | F69: 8 | G69: 7 | H69: víkend | I69: 1.55 | L69: 0 | M69: 0 | N69: 0 | O69: 0 | P69: 0 | Q69: 0 | R69: 0 | S69: 1.3
C70: 1999-01-03T08:30:00 | D70: 1 | E70: 3 | F70: 9 | G70: 7 | H70: víkend | I70: 2.15 | L70: 0 | M70: 0 | N70: 0 | O70: 0 | P70: 0 | Q70: 0 | R70: 0 | S70: 1.8
C71: 1999-01-03T09:30:00 | D71: 1 | E71: 3 | F71: 10 | G71: 7 | H71: víkend | I71: 2.9 | L71: 0 | M71: 0 | N71: 0 | O71: 0 | P71: 0 | Q71: 0 | R71: 0 | S71: 2.5
C72: 1999-01-03T10:30:00 | D72: 1 | E72: 3 | F72: 11 | G72: 7 | H72: víkend | I72: 3.45 | L72: 0 | M72: 0 | N72: 0 | O72: 0 | P72: 0 | Q72: 0 | R72: 0 | S72: 3.3
C73: 1999-01-03T11:30:00 | D73: 1 | E73: 3 | F73: 12 | G73: 7 | H73: víkend | I73: 4.6 | L73: 0 | M73: 0 | N73: 0 | O73: 0 | P73: 0 | Q73: 0 | R73: 0 | S73: 3.6
C74: 1999-01-03T12:30:00 | D74: 1 | E74: 3 | F74: 13 | G74: 7 | H74: víkend | I74: 5.75 | L74: 0 | M74: =IF($K74="",0,$K74/3600*1.2*1010*($L$1-(M$11/100*($L$1-$I74)+$I74))) -> 0 | N74: 0 | O74: 0 | P74: 0 | Q74: 0 | R74: 0 | S74: 5.6
C75: 1999-01-03T13:30:00 | D75: 1 | E75: 3 | F75: 14 | G75: 7 | H75: víkend | I75: 5.6 | L75: 0 | M75: 0 | N75: 0 | O75: 0 | P75: 0 | Q75: 0 | R75: 0 | S75: 5.9
C76: 1999-01-03T14:30:00 | D76: 1 | E76: 3 | F76: 15 | G76: 7 | H76: víkend | I76: 5 | L76: 0 | M76: 0 | N76: 0 | O76: 0 | P76: 0 | Q76: 0 | R76: 0 | S76: 5.3
C77: 1999-01-03T15:30:00 | D77: 1 | E77: 3 | F77: 16 | G77: 7 | H77: víkend | I77: 4 | L77: 0 | M77: 0 | N77: 0 | O77: 0 | P77: 0 | Q77: 0 | R77: 0 | S77: 4.7
C78: 1999-01-03T16:30:00 | D78: 1 | E78: 3 | F78: 17 | G78: 7 | H78: víkend | I78: 3.25 | L78: =IF($K78="",0,$K78/3600*1.2*1010*($L$1-(L$11*($L$1-$I78)+$I78))) -> 0 | M78: 0 | N78: 0 | O78: 0 | P78: 0 | Q78: 0 | R78: 0 | S78: 3.3
C79: =C78+1/24 -> 1999-01-03T17:30:00 | D79: 1 | E79: 3 | F79: 18 | G79: =WEEKDAY(C79-1) -> 7 | H79: =IF(G79=6,"víkend",IF(G79=7,"víkend","všední")) -> víkend | I79: 3.2 | J79: =+IF(K79="","",I79) ->  | L79: 0 | M79: 0 | N79: 0 | O79: 0 | P79: 0 | Q79: 0 | R79: 0 | S79: 3.2
C80: 1999-01-03T18:30:00 | D80: 1 | E80: 3 | F80: 19 | G80: 7 | H80: víkend | I80: 3 | L80: 0 | M80: 0 | N80: 0 | O80: 0 | P80: 0 | Q80: 0 | R80: 0 | S80: 3.2
C81: 1999-01-03T19:30:00 | D81: 1 | E81: 3 | F81: 20 | G81: 7 | H81: víkend | I81: 2.5 | L81: 0 | M81: 0 | N81: 0 | O81: 0 | P81: 0 | Q81: 0 | R81: 0 | S81: 2.8
C82: 1999-01-03T20:30:00 | D82: 1 | E82: 3 | F82: 21 | G82: 7 | H82: víkend | I82: 2.1 | L82: 0 | M82: 0 | N82: 0 | O82: 0 | P82: 0 | Q82: 0 | R82: 0 | S82: 2.2
C83: 1999-01-03T21:30:00 | D83: 1 | E83: 3 | F83: 22 | G83: 7 | H83: víkend | I83: 1.75 | L83: 0 | M83: 0 | N83: 0 | O83: 0 | P83: 0 | Q83: 0 | R83: 0 | S83: 2
C84: 1999-01-03T22:30:00 | D84: 1 | E84: 3 | F84: 23 | G84: 7 | H84: víkend | I84: 1.3 | L84: 0 | M84: =IF($K84="",0,$K84/3600*1.2*1010*($L$1-(M$11/100*($L$1-$I84)+$I84))) -> 0 | N84: 0 | O84: 0 | P84: 0 | Q84: 0 | R84: 0 | S84: 1.5
C85: 1999-01-03T23:30:00 | D85: 1 | E85: 3 | F85: 24 | G85: 7 | H85: víkend | I85: 0.85 | L85: 0 | M85: 0 | N85: 0 | O85: 0 | P85: 0 | Q85: 0 | R85: 0 | S85: 1.1
C86: 1999-01-04T00:30:00 | D86: 1 | E86: 4 | F86: 1 | G86: 1 | H86: všední | I86: 0.5 | K86: =IF(H86="víkend","",IF(I86>$N$1,"",IF(OR(F86<$E$5,F86>$E$6),"",$L$4))) ->  | L86: 0 | M86: 0 | N86: 0 | O86: 0 | P86: 0 | Q86: 0 | R86: 0 | S86: 0.6
C87: 1999-01-04T01:30:00 | D87: 1 | E87: 4 | F87: 2 | G87: 1 | H87: všední | I87: 0.35 | L87: 0 | M87: 0 | N87: 0 | O87: 0 | P87: 0 | Q87: 0 | R87: 0 | S87: 0.4
C88: 1999-01-04T02:30:00 | D88: 1 | E88: 4 | F88: 3 | G88: 1 | H88: všední | I88: 0.2 | L88: 0 | M88: 0 | N88: 0 | O88: 0 | P88: 0 | Q88: 0 | R88: 0 | S88: 0.3
C89: 1999-01-04T03:30:00 | D89: 1 | E89: 4 | F89: 4 | G89: 1 | H89: všední | I89: 0.05 | L89: 0 | M89: 0 | N89: 0 | O89: 0 | P89: 0 | Q89: 0 | R89: 0 | S89: 0.1
C90: 1999-01-04T04:30:00 | D90: 1 | E90: 4 | F90: 5 | G90: 1 | H90: všední | I90: -0.2 | L90: 0 | M90: 0 | N90: 0 | O90: 0 | P90: 0 | Q90: 0 | R90: 0 | S90: 0
C91: 1999-01-04T05:30:00 | D91: 1 | E91: 4 | F91: 6 | G91: 1 | H91: všední | I91: -0.35 | L91: 0 | M91: 0 | N91: 0 | O91: 0 | P91: 0 | Q91: 0 | R91: 0 | S91: -0.4
C92: 1999-01-04T06:30:00 | D92: 1 | E92: 4 | F92: 7 | G92: 1 | H92: všední | I92: -0.2 | L92: 0 | M92: 0 | N92: 0 | O92: 0 | P92: 0 | Q92: 0 | R92: 0 | S92: -0.3
C93: 1999-01-04T07:30:00 | D93: 1 | E93: 4 | F93: 8 | G93: 1 | H93: všední | I93: -0.25 | J93: -0.25 | K93: 324 | L93: 2427.03 | M93: 1213.515 | N93: 970.812 | O93: 800.9199 | P93: 485.406 | Q93: 242.703 | R93: 0 | S93: -0.1
C94: 1999-01-04T08:30:00 | D94: 1 | E94: 4 | F94: 9 | G94: 1 | H94: všední | I94: -0.6 | J94: -0.6 | K94: 324 | L94: 2465.208 | M94: =IF($K94="",0,$K94/3600*1.2*1010*($L$1-(M$11/100*($L$1-$I94)+$I94))) -> 1232.604 | N94: 986.0832 | O94: 813.51864 | P94: 493.0416 | Q94: 246.5208 | R94: 0 | S94: -0.4
C95: 1999-01-04T09:30:00 | D95: 1 | E95: 4 | F95: 10 | G95: 1 | H95: všední | I95: -1.2 | J95: -1.2 | K95: 324 | L95: 2530.656 | M95: 1265.328 | N95: 1012.2624 | O95: 835.11648 | P95: 506.1312 | Q95: 253.0656 | R95: 0 | S95: -0.8
C96: 1999-01-04T10:30:00 | D96: 1 | E96: 4 | F96: 11 | G96: 1 | H96: všední | I96: -1.8 | J96: -1.8 | K96: 324 | L96: 2596.104 | M96: 1298.052 | N96: 1038.4416 | O96: 856.71432 | P96: 519.2208 | Q96: 259.6104 | R96: 0 | S96: -1.6
C97: 1999-01-04T11:30:00 | D97: 1 | E97: 4 | F97: 12 | G97: 1 | H97: všední | I97: -1.9 | J97: -1.9 | K97: 324 | L97: 2607.012 | M97: 1303.506 | N97: 1042.8048 | O97: 860.31396 | P97: 521.4024 | Q97: 260.7012 | R97: 0 | S97: -2
C98: 1999-01-04T12:30:00 | D98: 1 | E98: 4 | F98: 13 | G98: 1 | H98: všední | I98: -1.2 | J98: -1.2 | K98: 324 | L98: 2530.656 | M98: 1265.328 | N98: 1012.2624 | O98: 835.11648 | P98: 506.1312 | Q98: 253.0656 | R98: 0 | S98: -1.8
C99: 1999-01-04T13:30:00 | D99: 1 | E99: 4 | F99: 14 | G99: 1 | H99: všední | I99: -0.5 | L99: 0 | M99: 0 | N99: 0 | O99: 0 | P99: 0 | Q99: 0 | R99: 0 | S99: -0.6
C100: 1999-01-04T14:30:00 | D100: 1 | E100: 4 | F100: 15 | G100: 1 | H100: všední | I100: -1.05 | L100: 0 | M100: 0 | N100: 0 | O100: 0 | P100: 0 | Q100: 0 | R100: 0 | S100: -0.4
C101: 1999-01-04T15:30:00 | D101: 1 | E101: 4 | F101: 16 | G101: 1 | H101: všední | I101: -1.75 | L101: 0 | M101: 0 | N101: 0 | O101: 0 | P101: 0 | Q101: 0 | R101: 0 | S101: -1.7
C102: 1999-01-04T16:30:00 | D102: 1 | E102: 4 | F102: 17 | G102: 1 | H102: všední | I102: -2.05 | L102: 0 | M102: 0 | N102: 0 | O102: 0 | P102: 0 | Q102: 0 | R102: 0 | S102: -1.8
C103: 1999-01-04T17:30:00 | D103: 1 | E103: 4 | F103: =F79 -> 18 | G103: 1 | H103: všední | I103: -2.45 | L103: 0 | M103: 0 | N103: 0 | O103: 0 | P103: 0 | Q103: 0 | R103: 0 | S103: -2.3
C104: 1999-01-04T18:30:00 | D104: 1 | E104: 4 | F104: 19 | G104: 1 | H104: všední | I104: -2.7 | L104: 0 | M104: =IF($K104="",0,$K104/3600*1.2*1010*($L$1-(M$11/100*($L$1-$I104)+$I104))) -> 0 | N104: 0 | O104: 0 | P104: 0 | Q104: 0 | R104: 0 | S104: -2.6
C105: 1999-01-04T19:30:00 | D105: 1 | E105: 4 | F105: 20 | G105: 1 | H105: všední | I105: -2.9 | L105: 0 | M105: 0 | N105: 0 | O105: 0 | P105: 0 | Q105: 0 | R105: 0 | S105: -2.8
C106: 1999-01-04T20:30:00 | D106: 1 | E106: 4 | F106: 21 | G106: 1 | H106: všední | I106: -1.65 | L106: 0 | M106: 0 | N106: 0 | O106: 0 | P106: 0 | Q106: 0 | R106: 0 | S106: -3
C107: 1999-01-04T21:30:00 | D107: 1 | E107: 4 | F107: 22 | G107: 1 | H107: všední | I107: -0.9 | L107: 0 | M107: 0 | N107: 0 | O107: 0 | P107: 0 | Q107: 0 | R107: 0 | S107: -0.3
C108: 1999-01-04T22:30:00 | D108: 1 | E108: 4 | F108: 23 | G108: 1 | H108: všední | I108: -2.15 | L108: 0 | M108: 0 | N108: 0 | O108: 0 | P108: 0 | Q108: 0 | R108: 0 | S108: -1.5
C109: 1999-01-04T23:30:00 | D109: 1 | E109: 4 | F109: 24 | G109: 1 | H109: všední | I109: -3.4 | L109: 0 | M109: 0 | N109: 0 | O109: 0 | P109: 0 | Q109: 0 | R109: 0 | S109: -2.8
C110: 1999-01-05T00:30:00 | D110: 1 | E110: 5 | F110: 1 | G110: 2 | H110: všední | I110: -3.7 | L110: 0 | M110: 0 | N110: 0 | O110: 0 | P110: 0 | Q110: 0 | R110: 0 | S110: -4
C111: 1999-01-05T01:30:00 | D111: 1 | E111: 5 | F111: 2 | G111: 2 | H111: všední | I111: -3.1 | L111: 0 | M111: 0 | N111: 0 | O111: 0 | P111: 0 | Q111: 0 | R111: 0 | S111: -3.4
C112: 1999-01-05T02:30:00 | D112: 1 | E112: 5 | F112: 3 | G112: 2 | H112: všední | I112: -2.5 | L112: 0 | M112: 0 | N112: 0 | O112: 0 | P112: 0 | Q112: 0 | R112: 0 | S112: -2.8
C113: 1999-01-05T03:30:00 | D113: 1 | E113: 5 | F113: 4 | G113: 2 | H113: všední | I113: -2.25 | L113: 0 | M113: 0 | N113: 0 | O113: 0 | P113: 0 | Q113: 0 | R113: 0 | S113: -2.2
C114: 1999-01-05T04:30:00 | D114: 1 | E114: 5 | F114: 5 | G114: 2 | H114: všední | I114: -2.2 | L114: 0 | M114: =IF($K114="",0,$K114/3600*1.2*1010*($L$1-(M$11/100*($L$1-$I114)+$I114))) -> 0 | N114: 0 | O114: 0 | P114: 0 | Q114: 0 | R114: 0 | S114: -2.3
C115: 1999-01-05T05:30:00 | D115: 1 | E115: 5 | F115: 6 | G115: 2 | H115: všední | I115: -2.95 | L115: 0 | M115: 0 | N115: 0 | O115: 0 | P115: 0 | Q115: 0 | R115: 0 | S115: -2.1
C116: 1999-01-05T06:30:00 | D116: 1 | E116: 5 | F116: 7 | G116: 2 | H116: všední | I116: -4.3 | L116: 0 | M116: 0 | N116: 0 | O116: 0 | P116: 0 | Q116: 0 | R116: 0 | S116: -3.8
C117: 1999-01-05T07:30:00 | D117: 1 | E117: 5 | F117: 8 | G117: 2 | H117: všední | I117: -4.4 | J117: -4.4 | K117: 324 | L117: 2879.712 | M117: 1439.856 | N117: 1151.8848 | O117: 950.30496 | P117: 575.9424 | Q117: 287.9712 | R117: 0 | S117: -4.8
C118: 1999-01-05T08:30:00 | D118: 1 | E118: 5 | F118: 9 | G118: 2 | H118: všední | I118: -3 | J118: -3 | K118: 324 | L118: 2727 | M118: 1363.5 | N118: 1090.8 | O118: 899.91 | P118: 545.4 | Q118: 272.7 | R118: 0 | S118: -4
C119: 1999-01-05T09:30:00 | D119: 1 | E119: 5 | F119: 10 | G119: 2 | H119: všední | I119: -2 | J119: -2 | K119: 324 | L119: 2617.92 | M119: 1308.96 | N119: 1047.168 | O119: 863.9136 | P119: 523.584 | Q119: 261.792 | R119: 0 | S119: -2
C120: 1999-01-05T10:30:00 | D120: 1 | E120: 5 | F120: 11 | G120: 2 | H120: všední | I120: -1.8 | J120: -1.8 | K120: 324 | L120: 2596.104 | M120: 1298.052 | N120: 1038.4416 | O120: 856.71432 | P120: 519.2208 | Q120: 259.6104 | R120: 0 | S120: -2
C121: 1999-01-05T11:30:00 | D121: 1 | E121: 5 | F121: 12 | G121: 2 | H121: všední | I121: -0.35 | J121: -0.35 | K121: 324 | L121: 2437.938 | M121: 1218.969 | N121: 975.1752 | O121: 804.51954 | P121: 487.5876 | Q121: 243.7938 | R121: 0 | S121: -1.6
C122: 1999-01-05T12:30:00 | D122: 1 | E122: 5 | F122: 13 | G122: 2 | H122: všední | I122: 0.45 | J122: 0.45 | K122: 324 | L122: 2350.674 | M122: 1175.337 | N122: 940.2696 | O122: 775.72242 | P122: 470.1348 | Q122: 235.0674 | R122: 0 | S122: 0.9
C123: 1999-01-05T13:30:00 | D123: 1 | E123: 5 | F123: 14 | G123: 2 | H123: všední | I123: 0 | L123: 0 | M123: 0 | N123: 0 | O123: 0 | P123: 0 | Q123: 0 | R123: 0 | S123: 0
C124: 1999-01-05T14:30:00 | D124: 1 | E124: 5 | F124: 15 | G124: 2 | H124: všední | I124: -0.1 | L124: 0 | M124: =IF($K124="",0,$K124/3600*1.2*1010*($L$1-(M$11/100*($L$1-$I124)+$I124))) -> 0 | N124: 0 | O124: 0 | P124: 0 | Q124: 0 | R124: 0 | S124: 0
C125: 1999-01-05T15:30:00 | D125: 1 | E125: 5 | F125: 16 | G125: 2 | H125: všední | I125: -0.25 | L125: 0 | M125: 0 | N125: 0 | O125: 0 | P125: 0 | Q125: 0 | R125: 0 | S125: -0.2
C126: 1999-01-05T16:30:00 | D126: 1 | E126: 5 | F126: 17 | G126: 2 | H126: všední | I126: -0.55 | L126: 0 | M126: 0 | N126: 0 | O126: 0 | P126: 0 | Q126: 0 | R126: 0 | S126: -0.3
C127: 1999-01-05T17:30:00 | D127: 1 | E127: 5 | F127: 18 | G127: 2 | H127: všední | I127: -0.9 | L127: 0 | M127: 0 | N127: 0 | O127: 0 | P127: 0 | Q127: 0 | R127: 0 | S127: -0.8
C128: 1999-01-05T18:30:00 | D128: 1 | E128: 5 | F128: 19 | G128: 2 | H128: všední | I128: -1.55 | L128: 0 | M128: 0 | N128: 0 | O128: 0 | P128: 0 | Q128: 0 | R128: 0 | S128: -1
C129: 1999-01-05T19:30:00 | D129: 1 | E129: 5 | F129: 20 | G129: 2 | H129: všední | I129: -2.25 | L129: 0 | M129: 0 | N129: 0 | O129: 0 | P129: 0 | Q129: 0 | R129: 0 | S129: -2.1
C130: 1999-01-05T20:30:00 | D130: 1 | E130: 5 | F130: 21 | G130: 2 | H130: všední | I130: -2.4 | L130: 0 | M130: 0 | N130: 0 | O130: 0 | P130: 0 | Q130: 0 | R130: 0 | S130: -2.4
C131: 1999-01-05T21:30:00 | D131: 1 | E131: 5 | F131: 22 | G131: 2 | H131: všední | I131: -2.4 | L131: 0 | M131: 0 | N131: 0 | O131: 0 | P131: 0 | Q131: 0 | R131: 0 | S131: -2.4
C132: 1999-01-05T22:30:00 | D132: 1 | E132: 5 | F132: 23 | G132: 2 | H132: všední | I132: -2.45 | L132: 0 | M132: 0 | N132: 0 | O132: 0 | P132: 0 | Q132: 0 | R132: 0 | S132: -2.4
C133: 1999-01-05T23:30:00 | D133: 1 | E133: 5 | F133: 24 | G133: 2 | H133: všední | I133: -2.5 | L133: 0 | M133: 0 | N133: 0 | O133: 0 | P133: 0 | Q133: 0 | R133: 0 | S133: -2.5
C134: 1999-01-06T00:30:00 | D134: 1 | E134: 6 | F134: 1 | G134: 3 | H134: všední | I134: -2.6 | L134: 0 | M134: =IF($K134="",0,$K134/3600*1.2*1010*($L$1-(M$11/100*($L$1-$I134)+$I134))) -> 0 | N134: 0 | O134: 0 | P134: 0 | Q134: 0 | R134: 0 | S134: -2.5
C135: 1999-01-06T01:30:00 | D135: 1 | E135: 6 | F135: 2 | G135: 3 | H135: všední | I135: -2.8 | L135: 0 | M135: 0 | N135: 0 | O135: 0 | P135: 0 | Q135: 0 | R135: 0 | S135: -2.7
C136: 1999-01-06T02:30:00 | D136: 1 | E136: 6 | F136: 3 | G136: 3 | H136: všední | I136: -3 | L136: 0 | M136: 0 | N136: 0 | O136: 0 | P136: 0 | Q136: 0 | R136: 0 | S136: -2.9
C137: 1999-01-06T03:30:00 | D137: 1 | E137: 6 | F137: 4 | G137: 3 | H137: všední | I137: -3.05 | L137: 0 | M137: 0 | N137: 0 | O137: 0 | P137: 0 | Q137: 0 | R137: 0 | S137: -3.1
C138: 1999-01-06T04:30:00 | D138: 1 | E138: 6 | F138: 5 | G138: 3 | H138: všední | I138: -3.2 | L138: 0 | M138: 0 | N138: 0 | O138: 0 | P138: 0 | Q138: 0 | R138: 0 | S138: -3
C139: 1999-01-06T05:30:00 | D139: 1 | E139: 6 | F139: 6 | G139: 3 | H139: všední | I139: -3.35 | L139: 0 | M139: 0 | N139: 0 | O139: 0 | P139: 0 | Q139: 0 | R139: 0 | S139: -3.4
C140: 1999-01-06T06:30:00 | D140: 1 | E140: 6 | F140: 7 | G140: 3 | H140: všední | I140: -3.45 | L140: 0 | M140: 0 | N140: 0 | O140: 0 | P140: 0 | Q140: 0 | R140: 0 | S140: -3.3
C141: 1999-01-06T07:30:00 | D141: 1 | E141: 6 | F141: 8 | G141: 3 | H141: všední | I141: -3.35 | J141: -3.35 | K141: 324 | L141: 2765.178 | M141: 1382.589 | N141: 1106.0712 | O141: 912.50874 | P141: 553.0356 | Q141: 276.5178 | R141: 0 | S141: -3.6
C142: 1999-01-06T08:30:00 | D142: 1 | E142: 6 | F142: 9 | G142: 3 | H142: všední | I142: -3.05 | J142: -3.05 | K142: 324 | L142: =IF($K142="",0,$K142/3600*1.2*1010*($L$1-(L$11*($L$1-$I142)+$I142))) -> 2732.454 | M142: 1366.227 | N142: 1092.9816 | O142: 901.70982 | P142: 546.4908 | Q142: 273.2454 | R142: 0 | S142: -3.1
C143: =C142+1/24 -> 1999-01-06T09:30:00 | D143: 1 | E143: 6 | F143: 10 | G143: =WEEKDAY(C143-1) -> 3 | H143: =IF(G143=6,"víkend",IF(G143=7,"víkend","všední")) -> všední | I143: -2.55 | J143: =+IF(K143="","",I143) -> -2.55 | K143: 324 | L143: 2677.914 | M143: 1338.957 | N143: 1071.1656 | O143: 883.71162 | P143: 535.5828 | Q143: 267.7914 | R143: 0 | S143: -3
C144: 1999-01-06T10:30:00 | D144: 1 | E144: 6 | F144: 11 | G144: 3 | H144: všední | I144: -1.4 | J144: -1.4 | K144: 324 | L144: 2552.472 | M144: =IF($K144="",0,$K144/3600*1.2*1010*($L$1-(M$11/100*($L$1-$I144)+$I144))) -> 1276.236 | N144: 1020.9888 | O144: 842.31576 | P144: 510.4944 | Q144: 255.2472 | R144: 0 | S144: -2.1
C145: 1999-01-06T11:30:00 | D145: 1 | E145: 6 | F145: 12 | G145: 3 | H145: všední | I145: -0.4 | J145: -0.4 | K145: 324 | L145: 2443.392 | M145: 1221.696 | N145: 977.3568 | O145: 806.31936 | P145: 488.6784 | Q145: 244.3392 | R145: 0 | S145: -0.7
C146: 1999-01-06T12:30:00 | D146: 1 | E146: 6 | F146: 13 | G146: 3 | H146: všední | I146: 0.15 | J146: 0.15 | K146: 324 | L146: 2383.398 | M146: 1191.699 | N146: 953.3592 | O146: 786.52134 | P146: 476.6796 | Q146: 238.3398 | R146: 0 | S146: -0.1
C147: 1999-01-06T13:30:00 | D147: 1 | E147: 6 | F147: 14 | G147: 3 | H147: všední | I147: 0.15 | L147: 0 | M147: 0 | N147: 0 | O147: 0 | P147: 0 | Q147: 0 | R147: 0 | S147: 0.4
C148: 1999-01-06T14:30:00 | D148: 1 | E148: 6 | F148: 15 | G148: 3 | H148: všední | I148: -0.15 | L148: 0 | M148: 0 | N148: 0 | O148: 0 | P148: 0 | Q148: 0 | R148: 0 | S148: -0.1
C149: 1999-01-06T15:30:00 | D149: 1 | E149: 6 | F149: 16 | G149: 3 | H149: všední | I149: -0.15 | L149: 0 | M149: 0 | N149: 0 | O149: 0 | P149: 0 | Q149: 0 | R149: 0 | S149: -0.2
C150: 1999-01-06T16:30:00 | D150: 1 | E150: 6 | F150: 17 | G150: 3 | H150: všední | I150: -0.15 | K150: =IF(H150="víkend","",IF(I150>$N$1,"",IF(OR(F150<$E$5,F150>$E$6),"",$L$4))) ->  | L150: 0 | M150: 0 | N150: 0 | O150: 0 | P150: 0 | Q150: 0 | R150: 0 | S150: -0.1
C151: 1999-01-06T17:30:00 | D151: 1 | E151: 6 | F151: 18 | G151: 3 | H151: všední | I151: -0.05 | L151: 0 | M151: 0 | N151: 0 | O151: 0 | P151: 0 | Q151: 0 | R151: 0 | S151: -0.2
C152: 1999-01-06T18:30:00 | D152: 1 | E152: 6 | F152: 19 | G152: 3 | H152: všední | I152: -0.05 | L152: 0 | M152: 0 | N152: 0 | O152: 0 | P152: 0 | Q152: 0 | R152: 0 | S152: 0.1
C153: 1999-01-06T19:30:00 | D153: 1 | E153: 6 | F153: 20 | G153: 3 | H153: všední | I153: -0.25 | L153: 0 | M153: 0 | N153: 0 | O153: 0 | P153: 0 | Q153: 0 | R153: 0 | S153: -0.2
C154: 1999-01-06T20:30:00 | D154: 1 | E154: 6 | F154: 21 | G154: 3 | H154: všední | I154: -0.6 | L154: 0 | M154: =IF($K154="",0,$K154/3600*1.2*1010*($L$1-(M$11/100*($L$1-$I154)+$I154))) -> 0 | N154: 0 | O154: 0 | P154: 0 | Q154: 0 | R154: 0 | S154: -0.3
C155: 1999-01-06T21:30:00 | D155: 1 | E155: 6 | F155: 22 | G155: 3 | H155: všední | I155: -0.75 | L155: 0 | M155: 0 | N155: 0 | O155: 0 | P155: 0 | Q155: 0 | R155: 0 | S155: -0.9
C156: 1999-01-06T22:30:00 | D156: 1 | E156: 6 | F156: 23 | G156: 3 | H156: všední | I156: -0.5 | L156: 0 | M156: 0 | N156: 0 | O156: 0 | P156: 0 | Q156: 0 | R156: 0 | S156: -0.6
C157: 1999-01-06T23:30:00 | D157: 1 | E157: 6 | F157: 24 | G157: 3 | H157: všední | I157: -0.25 | L157: 0 | M157: 0 | N157: 0 | O157: 0 | P157: 0 | Q157: 0 | R157: 0 | S157: -0.4
C158: 1999-01-07T00:30:00 | D158: 1 | E158: 7 | F158: 1 | G158: 4 | H158: všední | I158: -0.05 | L158: 0 | M158: 0 | N158: 0 | O158: 0 | P158: 0 | Q158: 0 | R158: 0 | S158: -0.1
C159: 1999-01-07T01:30:00 | D159: 1 | E159: 7 | F159: 2 | G159: 4 | H159: všední | I159: 0 | L159: 0 | M159: 0 | N159: 0 | O159: 0 | P159: 0 | Q159: 0 | R159: 0 | S159: 0
C160: 1999-01-07T02:30:00 | D160: 1 | E160: 7 | F160: 3 | G160: 4 | H160: všední | I160: 0.05 | L160: 0 | M160: 0 | N160: 0 | O160: 0 | P160: 0 | Q160: 0 | R160: 0 | S160: 0
C161: 1999-01-07T03:30:00 | D161: 1 | E161: 7 | F161: 4 | G161: 4 | H161: všední | I161: 0.1 | L161: 0 | M161: 0 | N161: 0 | O161: 0 | P161: 0 | Q161: 0 | R161: 0 | S161: 0.1
C162: 1999-01-07T04:30:00 | D162: 1 | E162: 7 | F162: 5 | G162: 4 | H162: všední | I162: 0 | L162: 0 | M162: 0 | N162: 0 | O162: 0 | P162: 0 | Q162: 0 | R162: 0 | S162: 0.1
C163: 1999-01-07T05:30:00 | D163: 1 | E163: 7 | F163: 6 | G163: 4 | H163: všední | I163: -0.3 | L163: 0 | M163: 0 | N163: 0 | O163: 0 | P163: 0 | Q163: 0 | R163: 0 | S163: -0.1
C164: 1999-01-07T06:30:00 | D164: 1 | E164: 7 | F164: 7 | G164: 4 | H164: všední | I164: -0.35 | L164: 0 | M164: =IF($K164="",0,$K164/3600*1.2*1010*($L$1-(M$11/100*($L$1-$I164)+$I164))) -> 0 | N164: 0 | O164: 0 | P164: 0 | Q164: 0 | R164: 0 | S164: -0.5
C165: 1999-01-07T07:30:00 | D165: 1 | E165: 7 | F165: 8 | G165: 4 | H165: všední | I165: 0.05 | J165: 0.05 | K165: 324 | L165: 2394.306 | M165: 1197.153 | N165: 957.7224 | O165: 790.12098 | P165: 478.8612 | Q165: 239.4306 | R165: 0 | S165: -0.2
C166: 1999-01-07T08:30:00 | D166: 1 | E166: 7 | F166: 9 | G166: 4 | H166: všední | I166: 0.6 | J166: 0.6 | K166: 324 | L166: 2334.312 | M166: 1167.156 | N166: 933.7248 | O166: 770.32296 | P166: 466.8624 | Q166: 233.4312 | R166: 0 | S166: 0.3
C167: 1999-01-07T09:30:00 | D167: 1 | E167: 7 | F167: =F143 -> 10 | G167: 4 | H167: všední | I167: 0.95 | J167: 0.95 | K167: 324 | L167: 2296.134 | M167: 1148.067 | N167: 918.4536 | O167: 757.72422 | P167: 459.2268 | Q167: 229.6134 | R167: 0 | S167: 0.9
C168: 1999-01-07T10:30:00 | D168: 1 | E168: 7 | F168: 11 | G168: 4 | H168: všední | I168: 0.95 | J168: 0.95 | K168: 324 | L168: 2296.134 | M168: 1148.067 | N168: 918.4536 | O168: 757.72422 | P168: 459.2268 | Q168: 229.6134 | R168: 0 | S168: 1
C169: 1999-01-07T11:30:00 | D169: 1 | E169: 7 | F169: 12 | G169: 4 | H169: všední | I169: 0.1 | J169: 0.1 | K169: 324 | L169: 2388.852 | M169: 1194.426 | N169: 955.5408 | O169: 788.32116 | P169: 477.7704 | Q169: 238.8852 | R169: 0 | S169: 0.9
C170: 1999-01-07T12:30:00 | D170: 1 | E170: 7 | F170: 13 | G170: 4 | H170: všední | I170: -0.3 | J170: -0.3 | K170: 324 | L170: 2432.484 | M170: 1216.242 | N170: 972.9936 | O170: 802.71972 | P170: 486.4968 | Q170: 243.2484 | R170: 0 | S170: -0.7
C171: 1999-01-07T13:30:00 | D171: 1 | E171: 7 | F171: 14 | G171: 4 | H171: všední | I171: -0.35 | L171: 0 | M171: 0 | N171: 0 | O171: 0 | P171: 0 | Q171: 0 | R171: 0 | S171: 0.1
C172: 1999-01-07T14:30:00 | D172: 1 | E172: 7 | F172: 15 | G172: 4 | H172: všední | I172: -0.95 | L172: 0 | M172: 0 | N172: 0 | O172: 0 | P172: 0 | Q172: 0 | R172: 0 | S172: -0.8
C173: 1999-01-07T15:30:00 | D173: 1 | E173: 7 | F173: 16 | G173: 4 | H173: všední | I173: -1.6 | L173: 0 | M173: 0 | N173: 0 | O173: 0 | P173: 0 | Q173: 0 | R173: 0 | S173: -1.1
C174: 1999-01-07T16:30:00 | D174: 1 | E174: 7 | F174: 17 | G174: 4 | H174: všední | I174: -2.6 | L174: 0 | M174: =IF($K174="",0,$K174/3600*1.2*1010*($L$1-(M$11/100*($L$1-$I174)+$I174))) -> 0 | N174: 0 | O174: 0 | P174: 0 | Q174: 0 | R174: 0 | S174: -2.1
C175: 1999-01-07T17:30:00 | D175: 1 | E175: 7 | F175: 18 | G175: 4 | H175: všední | I175: -3.25 | L175: 0 | M175: 0 | N175: 0 | O175: 0 | P175: 0 | Q175: 0 | R175: 0 | S175: -3.1
C176: 1999-01-07T18:30:00 | D176: 1 | E176: 7 | F176: 19 | G176: 4 | H176: všední | I176: -2.9 | L176: 0 | M176: 0 | N176: 0 | O176: 0 | P176: 0 | Q176: 0 | R176: 0 | S176: -3.4
C177: 1999-01-07T19:30:00 | D177: 1 | E177: 7 | F177: 20 | G177: 4 | H177: všední | I177: -2.45 | L177: 0 | M177: 0 | N177: 0 | O177: 0 | P177: 0 | Q177: 0 | R177: 0 | S177: -2.4
C178: 1999-01-07T20:30:00 | D178: 1 | E178: 7 | F178: 21 | G178: 4 | H178: všední | I178: -3.2 | L178: 0 | M178: 0 | N178: 0 | O178: 0 | P178: 0 | Q178: 0 | R178: 0 | S178: -2.5
C179: 1999-01-07T21:30:00 | D179: 1 | E179: 7 | F179: 22 | G179: 4 | H179: všední | I179: -4.1 | L179: 0 | M179: 0 | N179: 0 | O179: 0 | P179: 0 | Q179: 0 | R179: 0 | S179: -3.9
C180: 1999-01-07T22:30:00 | D180: 1 | E180: 7 | F180: 23 | G180: 4 | H180: všední | I180: -4.45 | L180: 0 | M180: 0 | N180: 0 | O180: 0 | P180: 0 | Q180: 0 | R180: 0 | S180: -4.3
C181: 1999-01-07T23:30:00 | D181: 1 | E181: 7 | F181: 24 | G181: 4 | H181: všední | I181: -4.8 | L181: 0 | M181: 0 | N181: 0 | O181: 0 | P181: 0 | Q181: 0 | R181: 0 | S181: -4.6
C182: 1999-01-08T00:30:00 | D182: 1 | E182: 8 | F182: 1 | G182: 5 | H182: všední | I182: -4.9 | L182: 0 | M182: 0 | N182: 0 | O182: 0 | P182: 0 | Q182: 0 | R182: 0 | S182: -5
C183: 1999-01-08T01:30:00 | D183: 1 | E183: 8 | F183: 2 | G183: 5 | H183: všední | I183: -4.65 | L183: 0 | M183: 0 | N183: 0 | O183: 0 | P183: 0 | Q183: 0 | R183: 0 | S183: -4.8
C184: 1999-01-08T02:30:00 | D184: 1 | E184: 8 | F184: 3 | G184: 5 | H184: všední | I184: -4.4 | L184: 0 | M184: =IF($K184="",0,$K184/3600*1.2*1010*($L$1-(M$11/100*($L$1-$I184)+$I184))) -> 0 | N184: 0 | O184: 0 | P184: 0 | Q184: 0 | R184: 0 | S184: -4.5
C185: 1999-01-08T03:30:00 | D185: 1 | E185: 8 | F185: 4 | G185: 5 | H185: všední | I185: -4.15 | L185: 0 | M185: 0 | N185: 0 | O185: 0 | P185: 0 | Q185: 0 | R185: 0 | S185: -4.3
C186: 1999-01-08T04:30:00 | D186: 1 | E186: 8 | F186: 5 | G186: 5 | H186: všední | I186: -3.9 | L186: 0 | M186: 0 | N186: 0 | O186: 0 | P186: 0 | Q186: 0 | R186: 0 | S186: -4
C187: 1999-01-08T05:30:00 | D187: 1 | E187: 8 | F187: 6 | G187: 5 | H187: všední | I187: -3.75 | L187: 0 | M187: 0 | N187: 0 | O187: 0 | P187: 0 | Q187: 0 | R187: 0 | S187: -3.8
C188: 1999-01-08T06:30:00 | D188: 1 | E188: 8 | F188: 7 | G188: 5 | H188: všední | I188: -3.65 | L188: 0 | M188: 0 | N188: 0 | O188: 0 | P188: 0 | Q188: 0 | R188: 0 | S188: -3.7
C189: 1999-01-08T07:30:00 | D189: 1 | E189: 8 | F189: 8 | G189: 5 | H189: všední | I189: -3.45 | J189: -3.45 | K189: 324 | L189: 2776.086 | M189: 1388.043 | N189: 1110.4344 | O189: 916.10838 | P189: 555.2172 | Q189: 277.6086 | R189: 0 | S189: -3.6
C190: 1999-01-08T08:30:00 | D190: 1 | E190: 8 | F190: 9 | G190: 5 | H190: všední | I190: -2.95 | J190: -2.95 | K190: 324 | L190: 2721.546 | M190: 1360.773 | N190: 1088.6184 | O190: 898.11018 | P190: 544.3092 | Q190: 272.1546 | R190: 0 | S190: -3.3
C191: 1999-01-08T09:30:00 | D191: 1 | E191: 8 | F191: 10 | G191: 5 | H191: všední | I191: -2.35 | J191: -2.35 | K191: 324 | L191: 2656.098 | M191: 1328.049 | N191: 1062.4392 | O191: 876.51234 | P191: 531.2196 | Q191: 265.6098 | R191: 0 | S191: -2.6
C192: 1999-01-08T10:30:00 | D192: 1 | E192: 8 | F192: 11 | G192: 5 | H192: všední | I192: -2.1 | J192: -2.1 | K192: 324 | L192: 2628.828 | M192: 1314.414 | N192: 1051.5312 | O192: 867.51324 | P192: 525.7656 | Q192: 262.8828 | R192: 0 | S192: -2.1
C193: 1999-01-08T11:30:00 | D193: 1 | E193: 8 | F193: 12 | G193: 5 | H193: všední | I193: -1.75 | J193: -1.75 | K193: 324 | L193: 2590.65 | M193: 1295.325 | N193: 1036.26 | O193: 854.9145 | P193: 518.13 | Q193: 259.065 | R193: 0 | S193: -2.1
C194: 1999-01-08T12:30:00 | D194: 1 | E194: 8 | F194: 13 | G194: 5 | H194: všední | I194: -1.25 | J194: -1.25 | K194: 324 | L194: 2536.11 | M194: =IF($K194="",0,$K194/3600*1.2*1010*($L$1-(M$11/100*($L$1-$I194)+$I194))) -> 1268.055 | N194: 1014.444 | O194: 836.9163 | P194: 507.222 | Q194: 253.611 | R194: 0 | S194: -1.4
C195: 1999-01-08T13:30:00 | D195: 1 | E195: 8 | F195: 14 | G195: 5 | H195: všední | I195: -1 | L195: 0 | M195: 0 | N195: 0 | O195: 0 | P195: 0 | Q195: 0 | R195: 0 | S195: -1.1
C196: 1999-01-08T14:30:00 | D196: 1 | E196: 8 | F196: 15 | G196: 5 | H196: všední | I196: -1.15 | L196: 0 | M196: 0 | N196: 0 | O196: 0 | P196: 0 | Q196: 0 | R196: 0 | S196: -0.9
C197: 1999-01-08T15:30:00 | D197: 1 | E197: 8 | F197: 16 | G197: 5 | H197: všední | I197: -2 | L197: 0 | M197: 0 | N197: 0 | O197: 0 | P197: 0 | Q197: 0 | R197: 0 | S197: -1.4
C198: 1999-01-08T16:30:00 | D198: 1 | E198: 8 | F198: 17 | G198: 5 | H198: všední | I198: -2.35 | L198: 0 | M198: 0 | N198: 0 | O198: 0 | P198: 0 | Q198: 0 | R198: 0 | S198: -2.6
C199: 1999-01-08T17:30:00 | D199: 1 | E199: 8 | F199: 18 | G199: 5 | H199: všední | I199: -1.95 | L199: 0 | M199: 0 | N199: 0 | O199: 0 | P199: 0 | Q199: 0 | R199: 0 | S199: -2.1
C200: 1999-01-08T18:30:00 | D200: 1 | E200: 8 | F200: 19 | G200: 5 | H200: všední | I200: -1.9 | L200: 0 | M200: 0 | N200: 0 | O200: 0 | P200: 0 | Q200: 0 | R200: 0 | S200: -1.8
... 4300 more rows

Sheet TRY_new (hidden)
A1: Potřeba tepla pro ohřev venkovního vzduchu | H1: ti | I1: °C | L1: 22 | M1: tekv | N1: 13 | P1: bez uvažování tepelných zisků | U1: ZZT | V1: Kč/GJ | W1: 0 | X1: 50 | Y1: 60 | Z1: 67 | AA1: 80 | AB1: 90 | AC1: 100 | AF1: POMOC
A2: TRY | C2: Den | D2: od | E2: 1 | H2: Počet žáků | I2: žáků | L2: 27 | U2: Náklady za rok | V2: 300 | W2: =+L$7*$V2 -> 1832.513894 | X2: 916.256947 | Y2: 733.0055576 | Z2: 604.729585 | AA2: 366.5027788 | AB2: 183.2513894 | AC2: -4.185324087e-16 | AD2: na třídu
D3: do | E3: 5 | H3: Dávka vzduchu | I3: m3/h.os | L3: 12 | V3: 400 | W3: 2443.351859 | X3: 1221.675929 | Y3: 977.3407434 | Z3: 806.3061133 | AA3: 488.6703717 | AB3: 244.3351859 | AC3: -5.580432116e-16
H4: Průtok vzduchu | I4: m3/h | L4: =+L2*L3 -> 324 | P4: =+W12/N5 -> 2.361111111 | V4: 500 | W4: 3054.189823 | X4: 1527.094912 | Y4: 1221.675929 | Z4: 1007.882642 | AA4: 610.8379646 | AB4: 305.4189823 | AC4: -6.975540146e-16
C5: Hodina | D5: od | E5: 8 | H5: Cena za GJ | I5: Kč/GJ | L5: 500 | M5: tj. | N5: =+N8/N6 -> 1.8 | O5: Kč/kWh | P5: teplo 3x levnější než elektrika | V5: 600 | W5: 3665.027788 | X5: 1832.513894 | Y5: 1466.011115 | Z5: 1209.45917 | AA5: 733.0055576 | AB5: 366.5027788 | AC5: -8.370648175e-16
D6: do | E6: 14 | H6: Potřeba tepla | I6: kWh/rok | L6: =SUM(L14:L9000)/1000 -> 1696.772124 | M6: =SUM(M14:M9000)/1000 -> 848.386062 | N6: 678.7088496 | O6: 559.9348009 | P6: 339.3544248 | Q6: 169.6772124 | R6: -3.875300081e-16 | V6: 700 | W6: 4275.865752 | X6: 2137.932876 | Y6: 1710.346301 | Z6: 1411.035698 | AA6: 855.1731505 | AB6: 427.5865752 | AC6: -9.765756204e-16
H7: Potřeba tepla | I7: GJ/rok | L7: =L6/1000000*3600 -> 6.108379646 | M7: =M6/1000000*3600 -> 3.054189823 | N7: 2.443351859 | O7: 2.015765283 | P7: 1.221675929 | Q7: 0.6108379646 | R7: -1.395108029e-18 | V7: 800 | W7: 4886.703717 | X7: 2443.351859 | Y7: 1954.681487 | Z7: 1612.612227 | AA7: 977.3407434 | AB7: 488.6703717 | AC7: -1.116086423e-15
C8: Měsíc | D8: od | E8: =+IF(E7=1,5,1) -> 1 | F8: 9 | H8: Náklady za rok | I8: Kč/rok | L8: =+L7*$L$5 -> 3054.189823 | M8: =+M7*$L$5 -> 1527.094912 | N8: 1221.675929 | O8: 1007.882642 | P8: 610.8379646 | Q8: 305.4189823 | R8: -6.975540146e-16
D9: do | E9: 6 | F9: 12 | H9: Náklady na žáka | I9: Kč/žáka.rok | L9: =+L8/$L$2 -> 113.1181416 | M9: 56.5590708 | N9: 45.24725664 | O9: 37.32898673 | P9: 22.62362832 | Q9: 11.31181416 | R9: -2.583533387e-17
H10: Tepelná ztráta větráním | I10: kW | L10: =+MAX(L14:L9000)/1000 -> 3.894156 | M10: =+MAX(M14:M9000)/1000 -> 1.947078 | N10: 1.5576624 | O10: 1.28507148 | P10: 0.7788312 | Q10: 0.3894156 | R10: 3.875300081e-16
I11: MIN | K11: - | L11: 0 | M11: 50 | N11: 60 | O11: 67 | P11: 80 | Q11: 90 | R11: 100 | U11: Potřeba elektrické energie pro jednotku
I12: =+MIN(I14:I6996) -> -16.8 | J12: =+MIN(J14:J6996) -> -15 | S12: 85 | U12: Cena za kWh | V12: Kč/kWh | W12: 4.25
C13: Date | D13: M | E13: D | F13: H | G13: DT | H13: Den v týdnu | I13: te | K13: V [m3/h] | L13: Q [W] | M13: Q [W] | N13: Q [W] | O13: Q [W] | P13: Q [W] | Q13: Q [W] | R13: Q [W] | U13: doba provozu | V13: h | W13: =+COUNT(K14:K6996) -> 1758
A14: 00:30:00 | B14: 1999-01-01 | C14: =B14+A14 -> 1999-01-01T00:30:00 | D14: 1 | E14: 1 | F14: 1 | G14: =WEEKDAY(C14-1) -> 5 | H14: =IF(G14=6,"víkend",IF(G14=7,"víkend",IF(OR(D14=7,D14=8),"prázdniny",IF(AND(D14=1,E14=1),"prázdniny","všední")))) -> prázdniny | I14: -4.55 | J14: =+IF(K14="","",I14) ->  | K14: =IF(OR(H14="víkend",H14="prázdniny"),"",IF(I14>13,0,IF(OR(F14<$E$5,F14>$E$6),"",IF(OR(F14=8,F14=14),$L$4/2,$L$4)))) ->  | L14: =IF($K14="",0,$K14/3600*1.2*1010*($L$1-(L$11*($L$1-$I14)+$I14))) -> 0 | M14: =IF($K14="",0,$K14/3600*1.2*1010*($L$1-(M$11/100*($L$1-$I14)+$I14))) -> 0 | N14: 0 | O14: 0 | P14: 0 | Q14: 0 | R14: 0 | S14: -4.55 | U14: SFP | V14: W.s/m3 | W14: 0 | X14: 1000 | Y14: 2000 | Z14: 3000 | AA14: 4000 | AB14: 5000
C15: =C14+1/24 -> 1999-01-01T01:30:00 | D15: 1 | E15: 1 | F15: 2 | G15: =WEEKDAY(C15-1) -> 5 | H15: =IF(G15=6,"víkend",IF(G15=7,"víkend",IF(OR(D15=7,D15=8),"prázdniny",IF(AND(D15=1,E15=1),"prázdniny","všední")))) -> prázdniny | I15: -5.8 | J15: =+IF(K15="","",I15) ->  | K15: =IF(OR(H15="víkend",H15="prázdniny"),"",IF(I15>13,0,IF(OR(F15<$E$5,F15>$E$6),"",IF(OR(F15=8,F15=14),$L$4/2,$L$4)))) ->  | L15: 0 | M15: 0 | N15: 0 | O15: 0 | P15: 0 | Q15: 0 | R15: 0 | S15: -5.8 | U15: Potřeba el. energie | V15: kWh/rok | W15: =+W14*$L$4/3600*$W$13/1000 -> 0 | X15: 158.22 | Y15: 316.44 | Z15: 474.66 | AA15: 632.88 | AB15: 791.1
C16: =C15+1/24 -> 1999-01-01T02:30:00 | D16: 1 | E16: 1 | F16: 3 | G16: 5 | H16: prázdniny | I16: -5.9 | L16: 0 | M16: 0 | N16: 0 | O16: 0 | P16: 0 | Q16: 0 | R16: 0 | S16: -5.9 | U16: Náklady | V16: Kč/rok | W16: =+W15*$W$12 -> 0 | X16: 672.435 | Y16: 1344.87 | Z16: 2017.305 | AA16: 2689.74 | AB16: 3362.175
C17: 1999-01-01T03:30:00 | D17: 1 | E17: 1 | F17: 4 | G17: 5 | H17: prázdniny | I17: -6.1 | L17: 0 | M17: 0 | N17: 0 | O17: 0 | P17: 0 | Q17: 0 | R17: 0 | S17: -6.1 | U17: Náklady na žáka | V17: Kč/rok na žáka | W17: 0 | X17: =+X16/25 -> 26.8974 | Y17: =+Y16/25 -> 53.7948 | Z17: =+Z16/25 -> 80.6922 | AA17: =+AA16/25 -> 107.5896 | AB17: =+AB16/25 -> 134.487
C18: 1999-01-01T04:30:00 | D18: 1 | E18: 1 | F18: 5 | G18: 5 | H18: prázdniny | I18: -6.6 | L18: 0 | M18: 0 | N18: 0 | O18: 0 | P18: 0 | Q18: 0 | R18: 0 | S18: -6.6
C19: 1999-01-01T05:30:00 | D19: 1 | E19: 1 | F19: 6 | G19: 5 | H19: prázdniny | I19: -6.6 | L19: 0 | M19: 0 | N19: 0 | O19: 0 | P19: 0 | Q19: 0 | R19: 0 | S19: -6.6 | U19: CELKOVĚ PO ODEČTENÍ TEP. ZISKŮ VENTILÁTORU
C20: 1999-01-01T06:30:00 | D20: 1 | E20: 1 | F20: 7 | G20: 5 | H20: prázdniny | I20: -6.8 | L20: 0 | M20: 0 | N20: 0 | O20: 0 | P20: 0 | Q20: 0 | R20: 0 | S20: -6.8 | U20: ZZT | V20: - | W20: 0 | X20: 50 | Y20: 60 | Z20: 67 | AA20: 80 | AB20: 90 | AC20: 100
C21: 1999-01-01T07:30:00 | D21: 1 | E21: 1 | F21: 8 | G21: 5 | H21: prázdniny | I21: -7 | L21: 0 | M21: 0 | N21: 0 | O21: 0 | P21: 0 | Q21: 0 | R21: 0 | S21: -7 | U21: Potřeba tepla | V21: SFP
C22: 1999-01-01T08:30:00 | D22: 1 | E22: 1 | F22: 9 | G22: 5 | H22: prázdniny | I22: -6.9 | L22: 0 | M22: 0 | N22: 0 | O22: 0 | P22: 0 | Q22: 0 | R22: 0 | S22: -6.9 | V22: 0 | W22: =IF(L$6-$V22*$L$4/3600/2*$W$13/1000<0,0,L$6-$V22*$L$4/3600/2*$W$13/1000) -> 1696.772124 | X22: 848.386062 | Y22: 678.7088496 | Z22: 559.9348009 | AA22: 339.3544248 | AB22: 169.6772124 | AC22: 0
C23: 1999-01-01T09:30:00 | D23: 1 | E23: 1 | F23: 10 | G23: 5 | H23: prázdniny | I23: -6.6 | L23: 0 | M23: 0 | N23: 0 | O23: 0 | P23: 0 | Q23: 0 | R23: 0 | S23: -6.6 | V23: 1000 | W23: 1617.662124 | X23: 769.276062 | Y23: 599.5988496 | Z23: 480.8248009 | AA23: 260.2444248 | AB23: 90.5672124 | AC23: 0
C24: 1999-01-01T10:30:00 | D24: 1 | E24: 1 | F24: 11 | G24: 5 | H24: prázdniny | I24: -6.3 | L24: 0 | M24: 0 | N24: 0 | O24: 0 | P24: 0 | Q24: 0 | R24: 0 | S24: -6.3 | V24: 2000 | W24: 1538.552124 | X24: 690.166062 | Y24: 520.4888496 | Z24: 401.7148009 | AA24: 181.1344248 | AB24: 11.4572124 | AC24: 0
C25: 1999-01-01T11:30:00 | D25: 1 | E25: 1 | F25: 12 | G25: 5 | H25: prázdniny | I25: -5.4 | L25: 0 | M25: 0 | N25: 0 | O25: 0 | P25: 0 | Q25: 0 | R25: 0 | S25: -5.4 | V25: 3000 | W25: 1459.442124 | X25: 611.056062 | Y25: 441.3788496 | Z25: 322.6048009 | AA25: 102.0244248 | AB25: 0 | AC25: 0
C26: 1999-01-01T12:30:00 | D26: 1 | E26: 1 | F26: 13 | G26: 5 | H26: prázdniny | I26: -5.7 | L26: 0 | M26: 0 | N26: 0 | O26: 0 | P26: 0 | Q26: 0 | R26: 0 | S26: -5.7 | V26: 4000 | W26: 1380.332124 | X26: 531.946062 | Y26: 362.2688496 | Z26: 243.4948009 | AA26: 22.9144248 | AB26: 0 | AC26: 0
C27: 1999-01-01T13:30:00 | D27: 1 | E27: 1 | F27: 14 | G27: 5 | H27: prázdniny | I27: -5.5 | L27: 0 | M27: 0 | N27: 0 | O27: 0 | P27: 0 | Q27: 0 | R27: 0 | S27: -5.5 | V27: 5000 | W27: 1301.222124 | X27: 452.836062 | Y27: 283.1588496 | Z27: 164.3848009 | AA27: 0 | AB27: 0 | AC27: 0
C28: 1999-01-01T14:30:00 | D28: 1 | E28: 1 | F28: 15 | G28: 5 | H28: prázdniny | I28: -5.5 | L28: 0 | M28: 0 | N28: 0 | O28: 0 | P28: 0 | Q28: 0 | R28: 0 | S28: -5.5
C29: 1999-01-01T15:30:00 | D29: 1 | E29: 1 | F29: 16 | G29: 5 | H29: prázdniny | I29: -5.6 | L29: 0 | M29: 0 | N29: 0 | O29: 0 | P29: 0 | Q29: 0 | R29: 0 | S29: -5.6 | U29: Celkové náklady | V29: SFP
C30: 1999-01-01T16:30:00 | D30: 1 | E30: 1 | F30: 17 | G30: 5 | H30: prázdniny | I30: -5.1 | L30: 0 | M30: =IF($K30="",0,$K30/3600*1.2*1010*($L$1-(M$11/100*($L$1-$I30)+$I30))) -> 0 | N30: 0 | O30: 0 | P30: 0 | Q30: 0 | R30: 0 | S30: -5.1 | U30: na 1 žáka | V30: 0 | W30: =W22/1000000*3600*$L$5/25+$W16 -> 122.1675929 | X30: 61.08379646 | Y30: 48.86703717 | Z30: 40.31530567 | AA30: 24.43351859 | AB30: 12.21675929 | AC30: 0
C31: 1999-01-01T17:30:00 | D31: 1 | E31: 1 | F31: 18 | G31: 5 | H31: prázdniny | I31: -5 | L31: 0 | M31: 0 | N31: 0 | O31: 0 | P31: 0 | Q31: 0 | R31: 0 | S31: -5 | V31: 1000 | W31: =W23/1000000*3600*$L$5/25+$X17 -> 143.3690729 | X31: 82.28527646 | Y31: 70.06851717 | Z31: 61.51678567 | AA31: 45.63499859 | AB31: 33.41823929 | AC31: 26.8974
C32: 1999-01-01T18:30:00 | D32: 1 | E32: 1 | F32: 19 | G32: 5 | H32: prázdniny | I32: -4.9 | L32: 0 | M32: 0 | N32: 0 | O32: 0 | P32: 0 | Q32: 0 | R32: 0 | S32: -4.9 | V32: 2000 | W32: =W24/1000000*3600*$L$5/25+$Y17 -> 164.5705529 | X32: 103.4867565 | Y32: 91.26999717 | Z32: 82.71826567 | AA32: 66.83647859 | AB32: 54.61971929 | AC32: 53.7948
C33: 1999-01-01T19:30:00 | D33: 1 | E33: 1 | F33: 20 | G33: 5 | H33: prázdniny | I33: -4.5 | L33: 0 | M33: 0 | N33: 0 | O33: 0 | P33: 0 | Q33: 0 | R33: 0 | S33: -4.5 | V33: 3000 | W33: =W25/1000000*3600*$L$5/25+$Z17 -> 185.7720329 | X33: 124.6882365 | Y33: 112.4714772 | Z33: 103.9197457 | AA33: 88.03795859 | AB33: 80.6922 | AC33: 80.6922
C34: 1999-01-01T20:30:00 | D34: 1 | E34: 1 | F34: 21 | G34: 5 | H34: prázdniny | I34: -4.6 | L34: 0 | M34: 0 | N34: 0 | O34: 0 | P34: 0 | Q34: 0 | R34: 0 | S34: -4.6 | V34: 4000 | W34: =W26/1000000*3600*$L$5/25+$AA17 -> 206.9735129 | X34: 145.8897165 | Y34: 133.6729572 | Z34: 125.1212257 | AA34: 109.2394386 | AB34: 107.5896 | AC34: 107.5896
C35: 1999-01-01T21:30:00 | D35: 1 | E35: 1 | F35: 22 | G35: 5 | H35: prázdniny | I35: -4.2 | L35: 0 | M35: 0 | N35: 0 | O35: 0 | P35: 0 | Q35: 0 | R35: 0 | S35: -4.2 | V35: 5000 | W35: =W27/1000000*3600*$L$5/25+$AB17 -> 228.1749929 | X35: 167.0911965 | Y35: 154.8744372 | Z35: 146.3227057 | AA35: 134.487 | AB35: 134.487 | AC35: 134.487
C36: 1999-01-01T22:30:00 | D36: 1 | E36: 1 | F36: 23 | G36: 5 | H36: prázdniny | I36: -4.4 | L36: 0 | M36: 0 | N36: 0 | O36: 0 | P36: 0 | Q36: 0 | R36: 0 | S36: -4.4
C37: 1999-01-01T23:30:00 | D37: 1 | E37: 1 | F37: 24 | G37: 5 | H37: prázdniny | I37: -4.6 | L37: 0 | M37: 0 | N37: 0 | O37: 0 | P37: 0 | Q37: 0 | R37: 0 | S37: -4.6 | U37: Celkové náklady | V37: SFP
C38: 1999-01-02T00:30:00 | D38: 1 | E38: 2 | F38: =F14 -> 1 | G38: 6 | H38: víkend | I38: -4.8 | L38: 0 | M38: 0 | N38: 0 | O38: 0 | P38: 0 | Q38: 0 | R38: 0 | S38: -4.8 | U38: na 1 třídu | V38: 0 | W38: =+W30*25 -> 3054.189823 | X38: =+X30*25 -> 1527.094912 | Y38: 1221.675929 | Z38: 1007.882642 | AA38: 610.8379646 | AB38: 305.4189823 | AC38: 0
C39: 1999-01-02T01:30:00 | D39: 1 | E39: 2 | F39: =F15 -> 2 | G39: 6 | H39: víkend | I39: -5.2 | L39: 0 | M39: 0 | N39: 0 | O39: 0 | P39: 0 | Q39: 0 | R39: 0 | S39: -5.2 | V39: 1000 | W39: =+W31*25 -> 3584.226823 | X39: 2057.131912 | Y39: 1751.712929 | Z39: 1537.919642 | AA39: 1140.874965 | AB39: 835.4559823 | AC39: 672.435
C40: 1999-01-02T02:30:00 | D40: 1 | E40: 2 | F40: 3 | G40: 6 | H40: víkend | I40: -5.5 | L40: 0 | M40: 0 | N40: 0 | O40: 0 | P40: 0 | Q40: 0 | R40: 0 | S40: -5.5 | V40: 2000 | W40: 4114.263823 | X40: 2587.168912 | Y40: 2281.749929 | Z40: 2067.956642 | AA40: 1670.911965 | AB40: 1365.492982 | AC40: 1344.87
C41: 1999-01-02T03:30:00 | D41: 1 | E41: 2 | F41: 4 | G41: 6 | H41: víkend | I41: -5.9 | L41: 0 | M41: 0 | N41: 0 | O41: 0 | P41: 0 | Q41: 0 | R41: 0 | S41: -5.9 | V41: 3000 | W41: 4644.300823 | X41: 3117.205912 | Y41: 2811.786929 | Z41: 2597.993642 | AA41: 2200.948965 | AB41: 2017.305 | AC41: 2017.305
C42: 1999-01-02T04:30:00 | D42: 1 | E42: 2 | F42: 5 | G42: 6 | H42: víkend | I42: -6.7 | L42: 0 | M42: 0 | N42: 0 | O42: 0 | P42: 0 | Q42: 0 | R42: 0 | S42: -6.7 | V42: 4000 | W42: 5174.337823 | X42: 3647.242912 | Y42: 3341.823929 | Z42: 3128.030642 | AA42: 2730.985965 | AB42: 2689.74 | AC42: 2689.74
C43: 1999-01-02T05:30:00 | D43: 1 | E43: 2 | F43: 6 | G43: 6 | H43: víkend | I43: -6.7 | L43: 0 | M43: 0 | N43: 0 | O43: 0 | P43: 0 | Q43: 0 | R43: 0 | S43: -6.7 | V43: 5000 | W43: 5704.374823 | X43: 4177.279912 | Y43: 3871.860929 | Z43: 3658.067642 | AA43: 3362.175 | AB43: 3362.175 | AC43: 3362.175
C44: 1999-01-02T06:30:00 | D44: 1 | E44: 2 | F44: 7 | G44: 6 | H44: víkend | I44: -6.6 | L44: 0 | M44: 0 | N44: 0 | O44: 0 | P44: 0 | Q44: 0 | R44: 0 | S44: -6.6
C45: 1999-01-02T07:30:00 | D45: 1 | E45: 2 | F45: 8 | G45: 6 | H45: víkend | I45: -6.7 | L45: 0 | M45: 0 | N45: 0 | O45: 0 | P45: 0 | Q45: 0 | R45: 0 | S45: -6.7
C46: 1999-01-02T08:30:00 | D46: 1 | E46: 2 | F46: 9 | G46: 6 | H46: víkend | I46: -6.2 | L46: 0 | M46: =IF($K46="",0,$K46/3600*1.2*1010*($L$1-(M$11/100*($L$1-$I46)+$I46))) -> 0 | N46: 0 | O46: 0 | P46: 0 | Q46: 0 | R46: 0 | S46: -6.2 | U46: V = variable | V46: m3/h.os
C47: 1999-01-02T09:30:00 | D47: 1 | E47: 2 | F47: 10 | G47: 6 | H47: víkend | I47: -5 | L47: 0 | M47: 0 | N47: 0 | O47: 0 | P47: 0 | Q47: 0 | R47: 0 | S47: -5 | U47: Potřeba tepla | W47: 0 | X47: 50 | Y47: 60 | Z47: 67 | AA47: 80 | AB47: 90 | AC47: 100
C48: 1999-01-02T10:30:00 | D48: 1 | E48: 2 | F48: 11 | G48: 6 | H48: víkend | I48: -4.9 | L48: 0 | M48: 0 | N48: 0 | O48: 0 | P48: 0 | Q48: 0 | R48: 0 | S48: -4.9 | V48: 10 | W48: =+W49*10/$V$49 -> 1413.97677 | X48: =+X49*10/$V$49 -> 706.988385 | Y48: 565.590708 | Z48: 466.6123341 | AA48: 282.795354 | AB48: 141.397677 | AC48: -3.229416734e-16 | AD48: kWh/rok
C49: 1999-01-02T11:30:00 | D49: 1 | E49: 2 | F49: 12 | G49: 6 | H49: víkend | I49: -3.6 | L49: 0 | M49: 0 | N49: 0 | O49: 0 | P49: 0 | Q49: 0 | R49: 0 | S49: -3.6 | V49: 12 | W49: =+L6 -> 1696.772124 | X49: 848.386062 | Y49: 678.7088496 | Z49: 559.9348009 | AA49: 339.3544248 | AB49: 169.6772124 | AC49: -3.875300081e-16 | AD49: kWh/rok
C50: 1999-01-02T12:30:00 | D50: 1 | E50: 2 | F50: 13 | G50: 6 | H50: víkend | I50: -2.5 | L50: 0 | M50: 0 | N50: 0 | O50: 0 | P50: 0 | Q50: 0 | R50: 0 | S50: -2.5 | V50: 20 | W50: =+W49*$V50/$V$49 -> 2827.95354 | X50: =+X49*$V50/$V$49 -> 1413.97677 | Y50: 1131.181416 | Z50: 933.2246682 | AA50: 565.590708 | AB50: 282.795354 | AC50: -6.458833468e-16 | AD50: kWh/rok
C51: 1999-01-02T13:30:00 | D51: 1 | E51: 2 | F51: 14 | G51: 6 | H51: víkend | I51: -1.7 | L51: 0 | M51: 0 | N51: 0 | O51: 0 | P51: 0 | Q51: 0 | R51: 0 | S51: -1.7 | V51: 30 | W51: =+W49*$V51/$V$49 -> 4241.93031 | X51: =+X49*$V51/$V$49 -> 2120.965155 | Y51: 1696.772124 | Z51: 1399.837002 | AA51: 848.386062 | AB51: 424.193031 | AC51: -9.688250202e-16
C52: 1999-01-02T14:30:00 | D52: 1 | E52: 2 | F52: 15 | G52: 6 | H52: víkend | I52: -1.2 | L52: 0 | M52: 0 | N52: 0 | O52: 0 | P52: 0 | Q52: 0 | R52: 0 | S52: -1.2 | U52: Potřeba el. energie | V52: SFP | W52: 0 | X52: 1000 | Y52: 2000 | Z52: 3000 | AA52: 4000 | AB52: 5000
C53: 1999-01-02T15:30:00 | D53: 1 | E53: 2 | F53: 16 | G53: 6 | H53: víkend | I53: -1 | L53: 0 | M53: 0 | N53: 0 | O53: 0 | P53: 0 | Q53: 0 | R53: 0 | S53: -1 | V53: 10 | W53: =+W54/2 -> 0 | X53: 79.11 | Y53: 158.22 | Z53: 237.33 | AA53: 316.44 | AB53: 395.55
C54: 1999-01-02T16:30:00 | D54: 1 | E54: 2 | F54: 17 | G54: 6 | H54: víkend | I54: -0.7 | L54: 0 | M54: 0 | N54: 0 | O54: 0 | P54: 0 | Q54: 0 | R54: 0 | S54: -0.7 | V54: 20 | W54: =+W15 -> 0 | X54: 158.22 | Y54: 316.44 | Z54: 474.66 | AA54: 632.88 | AB54: 791.1
C55: 1999-01-02T17:30:00 | D55: 1 | E55: 2 | F55: 18 | G55: 6 | H55: víkend | I55: -0.5 | L55: 0 | M55: 0 | N55: 0 | O55: 0 | P55: 0 | Q55: 0 | R55: 0 | S55: -0.5 | V55: 30 | W55: =+W54*1.5 -> 0 | X55: 237.33 | Y55: 474.66 | Z55: 711.99 | AA55: 949.32 | AB55: 1186.65
C56: 1999-01-02T18:30:00 | D56: 1 | E56: 2 | F56: 19 | G56: 6 | H56: víkend | I56: -0.4 | L56: 0 | M56: 0 | N56: 0 | O56: 0 | P56: 0 | Q56: 0 | R56: 0 | S56: -0.4 | V56: 0 | W56: 0 | X56: 0 | Y56: 0 | Z56: 0 | AA56: 0 | AB56: 0
C57: 1999-01-02T19:30:00 | D57: 1 | E57: 2 | F57: 20 | G57: 6 | H57: víkend | I57: -0.2 | L57: 0 | M57: 0 | N57: 0 | O57: 0 | P57: 0 | Q57: 0 | R57: 0 | S57: -0.2
C58: 1999-01-02T20:30:00 | D58: 1 | E58: 2 | F58: 21 | G58: 6 | H58: víkend | I58: -0.2 | L58: 0 | M58: 0 | N58: 0 | O58: 0 | P58: 0 | Q58: 0 | R58: 0 | S58: -0.2
C59: 1999-01-02T21:30:00 | D59: 1 | E59: 2 | F59: 22 | G59: 6 | H59: víkend | I59: -0.1 | L59: 0 | M59: 0 | N59: 0 | O59: 0 | P59: 0 | Q59: 0 | R59: 0 | S59: -0.1 | W59: 1697
C60: 1999-01-02T22:30:00 | D60: 1 | E60: 2 | F60: 23 | G60: 6 | H60: víkend | I60: 0.1 | L60: 0 | M60: 0 | N60: 0 | O60: 0 | P60: 0 | Q60: 0 | R60: 0 | S60: 0.1
C61: 1999-01-02T23:30:00 | D61: 1 | E61: 2 | F61: 24 | G61: 6 | H61: víkend | I61: 0.3 | L61: 0 | M61: 0 | N61: 0 | O61: 0 | P61: 0 | Q61: 0 | R61: 0 | S61: 0.3
C62: 1999-01-03T00:30:00 | D62: 1 | E62: 3 | F62: 1 | G62: 7 | H62: víkend | I62: 0.5 | L62: 0 | M62: =IF($K62="",0,$K62/3600*1.2*1010*($L$1-(M$11/100*($L$1-$I62)+$I62))) -> 0 | N62: 0 | O62: 0 | P62: 0 | Q62: 0 | R62: 0 | S62: 0.5
C63: 1999-01-03T01:30:00 | D63: 1 | E63: 3 | F63: 2 | G63: 7 | H63: víkend | I63: 0.4 | L63: 0 | M63: 0 | N63: 0 | O63: 0 | P63: 0 | Q63: 0 | R63: 0 | S63: 0.4
C64: 1999-01-03T02:30:00 | D64: 1 | E64: 3 | F64: 3 | G64: 7 | H64: víkend | I64: 0.2 | L64: 0 | M64: 0 | N64: 0 | O64: 0 | P64: 0 | Q64: 0 | R64: 0 | S64: 0.2
C65: 1999-01-03T03:30:00 | D65: 1 | E65: 3 | F65: 4 | G65: 7 | H65: víkend | I65: 0.1 | L65: 0 | M65: 0 | N65: 0 | O65: 0 | P65: 0 | Q65: 0 | R65: 0 | S65: 0.1
C66: 1999-01-03T04:30:00 | D66: 1 | E66: 3 | F66: 5 | G66: 7 | H66: víkend | I66: 0.4 | L66: 0 | M66: 0 | N66: 0 | O66: 0 | P66: 0 | Q66: 0 | R66: 0 | S66: 0.4
C67: 1999-01-03T05:30:00 | D67: 1 | E67: 3 | F67: 6 | G67: 7 | H67: víkend | I67: 0.6 | L67: 0 | M67: 0 | N67: 0 | O67: 0 | P67: 0 | Q67: 0 | R67: 0 | S67: 0.6
C68: 1999-01-03T06:30:00 | D68: 1 | E68: 3 | F68: 7 | G68: 7 | H68: víkend | I68: 0.7 | L68: 0 | M68: 0 | N68: 0 | O68: 0 | P68: 0 | Q68: 0 | R68: 0 | S68: 0.7
C69: 1999-01-03T07:30:00 | D69: 1 | E69: 3 | F69: 8 | G69: 7 | H69: víkend | I69: 1.3 | L69: 0 | M69: 0 | N69: 0 | O69: 0 | P69: 0 | Q69: 0 | R69: 0 | S69: 1.3
C70: 1999-01-03T08:30:00 | D70: 1 | E70: 3 | F70: 9 | G70: 7 | H70: víkend | I70: 1.8 | L70: 0 | M70: 0 | N70: 0 | O70: 0 | P70: 0 | Q70: 0 | R70: 0 | S70: 1.8
C71: 1999-01-03T09:30:00 | D71: 1 | E71: 3 | F71: 10 | G71: 7 | H71: víkend | I71: 2.5 | L71: 0 | M71: 0 | N71: 0 | O71: 0 | P71: 0 | Q71: 0 | R71: 0 | S71: 2.5
C72: 1999-01-03T10:30:00 | D72: 1 | E72: 3 | F72: 11 | G72: 7 | H72: víkend | I72: 3.3 | L72: 0 | M72: 0 | N72: 0 | O72: 0 | P72: 0 | Q72: 0 | R72: 0 | S72: 3.3
C73: 1999-01-03T11:30:00 | D73: 1 | E73: 3 | F73: 12 | G73: 7 | H73: víkend | I73: 3.6 | L73: 0 | M73: 0 | N73: 0 | O73: 0 | P73: 0 | Q73: 0 | R73: 0 | S73: 3.6
C74: 1999-01-03T12:30:00 | D74: 1 | E74: 3 | F74: 13 | G74: 7 | H74: víkend | I74: 5.6 | L74: 0 | M74: 0 | N74: 0 | O74: 0 | P74: 0 | Q74: 0 | R74: 0 | S74: 5.6
C75: 1999-01-03T13:30:00 | D75: 1 | E75: 3 | F75: 14 | G75: 7 | H75: víkend | I75: 5.9 | L75: 0 | M75: 0 | N75: 0 | O75: 0 | P75: 0 | Q75: 0 | R75: 0 | S75: 5.9
C76: 1999-01-03T14:30:00 | D76: 1 | E76: 3 | F76: 15 | G76: 7 | H76: víkend | I76: 5.3 | L76: 0 | M76: 0 | N76: 0 | O76: 0 | P76: 0 | Q76: 0 | R76: 0 | S76: 5.3
C77: 1999-01-03T15:30:00 | D77: 1 | E77: 3 | F77: 16 | G77: 7 | H77: víkend | I77: 4.7 | L77: 0 | M77: 0 | N77: 0 | O77: 0 | P77: 0 | Q77: 0 | R77: 0 | S77: 4.7
C78: 1999-01-03T16:30:00 | D78: 1 | E78: 3 | F78: 17 | G78: 7 | H78: víkend | I78: 3.3 | L78: =IF($K78="",0,$K78/3600*1.2*1010*($L$1-(L$11*($L$1-$I78)+$I78))) -> 0 | M78: =IF($K78="",0,$K78/3600*1.2*1010*($L$1-(M$11/100*($L$1-$I78)+$I78))) -> 0 | N78: 0 | O78: 0 | P78: 0 | Q78: 0 | R78: 0 | S78: 3.3
C79: 1999-01-03T17:30:00 | D79: 1 | E79: 3 | F79: 18 | G79: =WEEKDAY(C79-1) -> 7 | H79: =IF(G79=6,"víkend",IF(G79=7,"víkend",IF(OR(D79=7,D79=8),"prázdniny",IF(AND(D79=1,E79=1),"prázdniny","všední")))) -> víkend | I79: 3.2 | J79: =+IF(K79="","",I79) ->  | K79: =IF(OR(H79="víkend",H79="prázdniny"),"",IF(I79>13,0,IF(OR(F79<$E$5,F79>$E$6),"",IF(OR(F79=8,F79=14),$L$4/2,$L$4)))) ->  | L79: 0 | M79: 0 | N79: 0 | O79: 0 | P79: 0 | Q79: 0 | R79: 0 | S79: 3.2
C80: =C79+1/24 -> 1999-01-03T18:30:00 | D80: 1 | E80: 3 | F80: 19 | G80: 7 | H80: víkend | I80: 3.2 | L80: 0 | M80: 0 | N80: 0 | O80: 0 | P80: 0 | Q80: 0 | R80: 0 | S80: 3.2
C81: 1999-01-03T19:30:00 | D81: 1 | E81: 3 | F81: 20 | G81: 7 | H81: víkend | I81: 2.8 | L81: 0 | M81: 0 | N81: 0 | O81: 0 | P81: 0 | Q81: 0 | R81: 0 | S81: 2.8
C82: 1999-01-03T20:30:00 | D82: 1 | E82: 3 | F82: 21 | G82: 7 | H82: víkend | I82: 2.2 | L82: 0 | M82: 0 | N82: 0 | O82: 0 | P82: 0 | Q82: 0 | R82: 0 | S82: 2.2
C83: 1999-01-03T21:30:00 | D83: 1 | E83: 3 | F83: 22 | G83: 7 | H83: víkend | I83: 2 | L83: 0 | M83: 0 | N83: 0 | O83: 0 | P83: 0 | Q83: 0 | R83: 0 | S83: 2
C84: 1999-01-03T22:30:00 | D84: 1 | E84: 3 | F84: 23 | G84: 7 | H84: víkend | I84: 1.5 | L84: 0 | M84: 0 | N84: 0 | O84: 0 | P84: 0 | Q84: 0 | R84: 0 | S84: 1.5
C85: 1999-01-03T23:30:00 | D85: 1 | E85: 3 | F85: 24 | G85: 7 | H85: víkend | I85: 1.1 | L85: 0 | M85: 0 | N85: 0 | O85: 0 | P85: 0 | Q85: 0 | R85: 0 | S85: 1.1
C86: 1999-01-04T00:30:00 | D86: 1 | E86: 4 | F86: 1 | G86: 1 | H86: všední | I86: 0.6 | L86: 0 | M86: 0 | N86: 0 | O86: 0 | P86: 0 | Q86: 0 | R86: 0 | S86: 0.6
C87: 1999-01-04T01:30:00 | D87: 1 | E87: 4 | F87: 2 | G87: 1 | H87: všední | I87: 0.4 | L87: 0 | M87: 0 | N87: 0 | O87: 0 | P87: 0 | Q87: 0 | R87: 0 | S87: 0.4
C88: 1999-01-04T02:30:00 | D88: 1 | E88: 4 | F88: 3 | G88: 1 | H88: všední | I88: 0.3 | L88: 0 | M88: 0 | N88: 0 | O88: 0 | P88: 0 | Q88: 0 | R88: 0 | S88: 0.3
C89: 1999-01-04T03:30:00 | D89: 1 | E89: 4 | F89: 4 | G89: 1 | H89: všední | I89: 0.1 | L89: 0 | M89: 0 | N89: 0 | O89: 0 | P89: 0 | Q89: 0 | R89: 0 | S89: 0.1
C90: 1999-01-04T04:30:00 | D90: 1 | E90: 4 | F90: 5 | G90: 1 | H90: všední | I90: 0 | L90: 0 | M90: 0 | N90: 0 | O90: 0 | P90: 0 | Q90: 0 | R90: 0 | S90: 0
C91: 1999-01-04T05:30:00 | D91: 1 | E91: 4 | F91: 6 | G91: 1 | H91: všední | I91: -0.4 | L91: 0 | M91: 0 | N91: 0 | O91: 0 | P91: 0 | Q91: 0 | R91: 0 | S91: -0.4
C92: 1999-01-04T06:30:00 | D92: 1 | E92: 4 | F92: 7 | G92: 1 | H92: všední | I92: -0.3 | L92: 0 | M92: 0 | N92: 0 | O92: 0 | P92: 0 | Q92: 0 | R92: 0 | S92: -0.3
C93: 1999-01-04T07:30:00 | D93: 1 | E93: 4 | F93: 8 | G93: 1 | H93: všední | I93: -0.1 | J93: -0.1 | K93: 162 | L93: 1205.334 | M93: 602.667 | N93: 482.1336 | O93: 397.76022 | P93: 241.0668 | Q93: 120.5334 | R93: 0 | S93: -0.1
C94: 1999-01-04T08:30:00 | D94: 1 | E94: 4 | F94: 9 | G94: 1 | H94: všední | I94: -0.4 | J94: -0.4 | K94: 324 | L94: 2443.392 | M94: =IF($K94="",0,$K94/3600*1.2*1010*($L$1-(M$11/100*($L$1-$I94)+$I94))) -> 1221.696 | N94: 977.3568 | O94: 806.31936 | P94: 488.6784 | Q94: 244.3392 | R94: 0 | S94: -0.4
C95: 1999-01-04T09:30:00 | D95: 1 | E95: 4 | F95: 10 | G95: 1 | H95: všední | I95: -0.8 | J95: -0.8 | K95: 324 | L95: 2487.024 | M95: 1243.512 | N95: 994.8096 | O95: 820.71792 | P95: 497.4048 | Q95: 248.7024 | R95: 0 | S95: -0.8
C96: 1999-01-04T10:30:00 | D96: 1 | E96: 4 | F96: 11 | G96: 1 | H96: všední | I96: -1.6 | J96: -1.6 | K96: 324 | L96: 2574.288 | M96: 1287.144 | N96: 1029.7152 | O96: 849.51504 | P96: 514.8576 | Q96: 257.4288 | R96: 0 | S96: -1.6
C97: 1999-01-04T11:30:00 | D97: 1 | E97: 4 | F97: 12 | G97: 1 | H97: všední | I97: -2 | J97: -2 | K97: 324 | L97: 2617.92 | M97: 1308.96 | N97: 1047.168 | O97: 863.9136 | P97: 523.584 | Q97: 261.792 | R97: 0 | S97: -2
C98: 1999-01-04T12:30:00 | D98: 1 | E98: 4 | F98: 13 | G98: 1 | H98: všední | I98: -1.8 | J98: -1.8 | K98: 324 | L98: 2596.104 | M98: 1298.052 | N98: 1038.4416 | O98: 856.71432 | P98: 519.2208 | Q98: 259.6104 | R98: 0 | S98: -1.8
C99: 1999-01-04T13:30:00 | D99: 1 | E99: 4 | F99: 14 | G99: 1 | H99: všední | I99: -0.6 | J99: -0.6 | K99: 162 | L99: 1232.604 | M99: 616.302 | N99: 493.0416 | O99: 406.75932 | P99: 246.5208 | Q99: 123.2604 | R99: 0 | S99: -0.6
C100: 1999-01-04T14:30:00 | D100: 1 | E100: 4 | F100: 15 | G100: 1 | H100: všední | I100: -0.4 | L100: 0 | M100: 0 | N100: 0 | O100: 0 | P100: 0 | Q100: 0 | R100: 0 | S100: -0.4
C101: 1999-01-04T15:30:00 | D101: 1 | E101: 4 | F101: 16 | G101: 1 | H101: všední | I101: -1.7 | L101: 0 | M101: 0 | N101: 0 | O101: 0 | P101: 0 | Q101: 0 | R101: 0 | S101: -1.7
C102: 1999-01-04T16:30:00 | D102: 1 | E102: 4 | F102: 17 | G102: 1 | H102: všední | I102: -1.8 | L102: 0 | M102: 0 | N102: 0 | O102: 0 | P102: 0 | Q102: 0 | R102: 0 | S102: -1.8
C103: 1999-01-04T17:30:00 | D103: 1 | E103: 4 | F103: =F79 -> 18 | G103: 1 | H103: všední | I103: -2.3 | L103: 0 | M103: 0 | N103: 0 | O103: 0 | P103: 0 | Q103: 0 | R103: 0 | S103: -2.3
C104: 1999-01-04T18:30:00 | D104: 1 | E104: 4 | F104: 19 | G104: 1 | H104: všední | I104: -2.6 | L104: 0 | M104: 0 | N104: 0 | O104: 0 | P104: 0 | Q104: 0 | R104: 0 | S104: -2.6
C105: 1999-01-04T19:30:00 | D105: 1 | E105: 4 | F105: 20 | G105: 1 | H105: všední | I105: -2.8 | L105: 0 | M105: 0 | N105: 0 | O105: 0 | P105: 0 | Q105: 0 | R105: 0 | S105: -2.8
C106: 1999-01-04T20:30:00 | D106: 1 | E106: 4 | F106: 21 | G106: 1 | H106: všední | I106: -3 | L106: 0 | M106: 0 | N106: 0 | O106: 0 | P106: 0 | Q106: 0 | R106: 0 | S106: -3
C107: 1999-01-04T21:30:00 | D107: 1 | E107: 4 | F107: 22 | G107: 1 | H107: všední | I107: -0.3 | L107: 0 | M107: 0 | N107: 0 | O107: 0 | P107: 0 | Q107: 0 | R107: 0 | S107: -0.3
C108: 1999-01-04T22:30:00 | D108: 1 | E108: 4 | F108: 23 | G108: 1 | H108: všední | I108: -1.5 | L108: 0 | M108: 0 | N108: 0 | O108: 0 | P108: 0 | Q108: 0 | R108: 0 | S108: -1.5
C109: 1999-01-04T23:30:00 | D109: 1 | E109: 4 | F109: 24 | G109: 1 | H109: všední | I109: -2.8 | L109: 0 | M109: 0 | N109: 0 | O109: 0 | P109: 0 | Q109: 0 | R109: 0 | S109: -2.8
C110: 1999-01-05T00:30:00 | D110: 1 | E110: 5 | F110: 1 | G110: 2 | H110: všední | I110: -4 | L110: 0 | M110: =IF($K110="",0,$K110/3600*1.2*1010*($L$1-(M$11/100*($L$1-$I110)+$I110))) -> 0 | N110: 0 | O110: 0 | P110: 0 | Q110: 0 | R110: 0 | S110: -4
C111: 1999-01-05T01:30:00 | D111: 1 | E111: 5 | F111: 2 | G111: 2 | H111: všední | I111: -3.4 | L111: 0 | M111: 0 | N111: 0 | O111: 0 | P111: 0 | Q111: 0 | R111: 0 | S111: -3.4
C112: 1999-01-05T02:30:00 | D112: 1 | E112: 5 | F112: 3 | G112: 2 | H112: všední | I112: -2.8 | L112: 0 | M112: 0 | N112: 0 | O112: 0 | P112: 0 | Q112: 0 | R112: 0 | S112: -2.8
C113: 1999-01-05T03:30:00 | D113: 1 | E113: 5 | F113: 4 | G113: 2 | H113: všední | I113: -2.2 | L113: 0 | M113: 0 | N113: 0 | O113: 0 | P113: 0 | Q113: 0 | R113: 0 | S113: -2.2
C114: 1999-01-05T04:30:00 | D114: 1 | E114: 5 | F114: 5 | G114: 2 | H114: všední | I114: -2.3 | L114: 0 | M114: 0 | N114: 0 | O114: 0 | P114: 0 | Q114: 0 | R114: 0 | S114: -2.3
C115: 1999-01-05T05:30:00 | D115: 1 | E115: 5 | F115: 6 | G115: 2 | H115: všední | I115: -2.1 | L115: 0 | M115: 0 | N115: 0 | O115: 0 | P115: 0 | Q115: 0 | R115: 0 | S115: -2.1
C116: 1999-01-05T06:30:00 | D116: 1 | E116: 5 | F116: 7 | G116: 2 | H116: všední | I116: -3.8 | L116: 0 | M116: 0 | N116: 0 | O116: 0 | P116: 0 | Q116: 0 | R116: 0 | S116: -3.8
C117: 1999-01-05T07:30:00 | D117: 1 | E117: 5 | F117: 8 | G117: 2 | H117: všední | I117: -4.8 | J117: -4.8 | K117: 162 | L117: 1461.672 | M117: 730.836 | N117: 584.6688 | O117: 482.35176 | P117: 292.3344 | Q117: 146.1672 | R117: 0 | S117: -4.8
C118: 1999-01-05T08:30:00 | D118: 1 | E118: 5 | F118: 9 | G118: 2 | H118: všední | I118: -4 | J118: -4 | K118: 324 | L118: 2836.08 | M118: 1418.04 | N118: 1134.432 | O118: 935.9064 | P118: 567.216 | Q118: 283.608 | R118: 0 | S118: -4
C119: 1999-01-05T09:30:00 | D119: 1 | E119: 5 | F119: 10 | G119: 2 | H119: všední | I119: -2 | J119: -2 | K119: 324 | L119: 2617.92 | M119: 1308.96 | N119: 1047.168 | O119: 863.9136 | P119: 523.584 | Q119: 261.792 | R119: 0 | S119: -2
C120: 1999-01-05T10:30:00 | D120: 1 | E120: 5 | F120: 11 | G120: 2 | H120: všední | I120: -2 | J120: -2 | K120: 324 | L120: 2617.92 | M120: 1308.96 | N120: 1047.168 | O120: 863.9136 | P120: 523.584 | Q120: 261.792 | R120: 0 | S120: -2
C121: 1999-01-05T11:30:00 | D121: 1 | E121: 5 | F121: 12 | G121: 2 | H121: všední | I121: -1.6 | J121: -1.6 | K121: 324 | L121: 2574.288 | M121: 1287.144 | N121: 1029.7152 | O121: 849.51504 | P121: 514.8576 | Q121: 257.4288 | R121: 0 | S121: -1.6
C122: 1999-01-05T12:30:00 | D122: 1 | E122: 5 | F122: 13 | G122: 2 | H122: všední | I122: 0.9 | J122: 0.9 | K122: 324 | L122: 2301.588 | M122: 1150.794 | N122: 920.6352 | O122: 759.52404 | P122: 460.3176 | Q122: 230.1588 | R122: 0 | S122: 0.9
C123: 1999-01-05T13:30:00 | D123: 1 | E123: 5 | F123: 14 | G123: 2 | H123: všední | I123: 0 | J123: 0 | K123: 162 | L123: 1199.88 | M123: 599.94 | N123: 479.952 | O123: 395.9604 | P123: 239.976 | Q123: 119.988 | R123: 0 | S123: 0
C124: 1999-01-05T14:30:00 | D124: 1 | E124: 5 | F124: 15 | G124: 2 | H124: všední | I124: 0 | L124: 0 | M124: 0 | N124: 0 | O124: 0 | P124: 0 | Q124: 0 | R124: 0 | S124: 0
C125: 1999-01-05T15:30:00 | D125: 1 | E125: 5 | F125: 16 | G125: 2 | H125: všední | I125: -0.2 | L125: 0 | M125: 0 | N125: 0 | O125: 0 | P125: 0 | Q125: 0 | R125: 0 | S125: -0.2
C126: 1999-01-05T16:30:00 | D126: 1 | E126: 5 | F126: 17 | G126: 2 | H126: všední | I126: -0.3 | L126: 0 | M126: =IF($K126="",0,$K126/3600*1.2*1010*($L$1-(M$11/100*($L$1-$I126)+$I126))) -> 0 | N126: 0 | O126: 0 | P126: 0 | Q126: 0 | R126: 0 | S126: -0.3
C127: 1999-01-05T17:30:00 | D127: 1 | E127: 5 | F127: 18 | G127: 2 | H127: všední | I127: -0.8 | L127: 0 | M127: 0 | N127: 0 | O127: 0 | P127: 0 | Q127: 0 | R127: 0 | S127: -0.8
C128: 1999-01-05T18:30:00 | D128: 1 | E128: 5 | F128: 19 | G128: 2 | H128: všední | I128: -1 | L128: 0 | M128: 0 | N128: 0 | O128: 0 | P128: 0 | Q128: 0 | R128: 0 | S128: -1
C129: 1999-01-05T19:30:00 | D129: 1 | E129: 5 | F129: 20 | G129: 2 | H129: všední | I129: -2.1 | L129: 0 | M129: 0 | N129: 0 | O129: 0 | P129: 0 | Q129: 0 | R129: 0 | S129: -2.1
C130: 1999-01-05T20:30:00 | D130: 1 | E130: 5 | F130: 21 | G130: 2 | H130: všední | I130: -2.4 | L130: 0 | M130: 0 | N130: 0 | O130: 0 | P130: 0 | Q130: 0 | R130: 0 | S130: -2.4
C131: 1999-01-05T21:30:00 | D131: 1 | E131: 5 | F131: 22 | G131: 2 | H131: všední | I131: -2.4 | L131: 0 | M131: 0 | N131: 0 | O131: 0 | P131: 0 | Q131: 0 | R131: 0 | S131: -2.4
C132: 1999-01-05T22:30:00 | D132: 1 | E132: 5 | F132: 23 | G132: 2 | H132: všední | I132: -2.4 | L132: 0 | M132: 0 | N132: 0 | O132: 0 | P132: 0 | Q132: 0 | R132: 0 | S132: -2.4
C133: 1999-01-05T23:30:00 | D133: 1 | E133: 5 | F133: 24 | G133: 2 | H133: všední | I133: -2.5 | L133: 0 | M133: 0 | N133: 0 | O133: 0 | P133: 0 | Q133: 0 | R133: 0 | S133: -2.5
C134: 1999-01-06T00:30:00 | D134: 1 | E134: 6 | F134: 1 | G134: 3 | H134: všední | I134: -2.5 | L134: 0 | M134: 0 | N134: 0 | O134: 0 | P134: 0 | Q134: 0 | R134: 0 | S134: -2.5
C135: 1999-01-06T01:30:00 | D135: 1 | E135: 6 | F135: 2 | G135: 3 | H135: všední | I135: -2.7 | L135: 0 | M135: 0 | N135: 0 | O135: 0 | P135: 0 | Q135: 0 | R135: 0 | S135: -2.7
C136: 1999-01-06T02:30:00 | D136: 1 | E136: 6 | F136: 3 | G136: 3 | H136: všední | I136: -2.9 | L136: 0 | M136: 0 | N136: 0 | O136: 0 | P136: 0 | Q136: 0 | R136: 0 | S136: -2.9
C137: 1999-01-06T03:30:00 | D137: 1 | E137: 6 | F137: 4 | G137: 3 | H137: všední | I137: -3.1 | L137: 0 | M137: 0 | N137: 0 | O137: 0 | P137: 0 | Q137: 0 | R137: 0 | S137: -3.1
C138: 1999-01-06T04:30:00 | D138: 1 | E138: 6 | F138: 5 | G138: 3 | H138: všední | I138: -3 | L138: 0 | M138: 0 | N138: 0 | O138: 0 | P138: 0 | Q138: 0 | R138: 0 | S138: -3
C139: 1999-01-06T05:30:00 | D139: 1 | E139: 6 | F139: 6 | G139: 3 | H139: všední | I139: -3.4 | L139: 0 | M139: 0 | N139: 0 | O139: 0 | P139: 0 | Q139: 0 | R139: 0 | S139: -3.4
C140: 1999-01-06T06:30:00 | D140: 1 | E140: 6 | F140: 7 | G140: 3 | H140: všední | I140: -3.3 | L140: 0 | M140: 0 | N140: 0 | O140: 0 | P140: 0 | Q140: 0 | R140: 0 | S140: -3.3
C141: 1999-01-06T07:30:00 | D141: 1 | E141: 6 | F141: 8 | G141: 3 | H141: všední | I141: -3.6 | J141: -3.6 | K141: 162 | L141: 1396.224 | M141: 698.112 | N141: 558.4896 | O141: 460.75392 | P141: 279.2448 | Q141: 139.6224 | R141: 0 | S141: -3.6
C142: 1999-01-06T08:30:00 | D142: 1 | E142: 6 | F142: 9 | G142: 3 | H142: všední | I142: -3.1 | J142: -3.1 | K142: 324 | L142: =IF($K142="",0,$K142/3600*1.2*1010*($L$1-(L$11*($L$1-$I142)+$I142))) -> 2737.908 | M142: =IF($K142="",0,$K142/3600*1.2*1010*($L$1-(M$11/100*($L$1-$I142)+$I142))) -> 1368.954 | N142: 1095.1632 | O142: 903.50964 | P142: 547.5816 | Q142: 273.7908 | R142: 0 | S142: -3.1
C143: 1999-01-06T09:30:00 | D143: 1 | E143: 6 | F143: 10 | G143: =WEEKDAY(C143-1) -> 3 | H143: =IF(G143=6,"víkend",IF(G143=7,"víkend",IF(OR(D143=7,D143=8),"prázdniny",IF(AND(D143=1,E143=1),"prázdniny","všední")))) -> všední | I143: -3 | J143: =+IF(K143="","",I143) -> -3 | K143: =IF(OR(H143="víkend",H143="prázdniny"),"",IF(I143>13,0,IF(OR(F143<$E$5,F143>$E$6),"",IF(OR(F143=8,F143=14),$L$4/2,$L$4)))) -> 324 | L143: 2727 | M143: 1363.5 | N143: 1090.8 | O143: 899.91 | P143: 545.4 | Q143: 272.7 | R143: 0 | S143: -3
C144: =C143+1/24 -> 1999-01-06T10:30:00 | D144: 1 | E144: 6 | F144: 11 | G144: 3 | H144: všední | I144: -2.1 | J144: -2.1 | K144: 324 | L144: 2628.828 | M144: 1314.414 | N144: 1051.5312 | O144: 867.51324 | P144: 525.7656 | Q144: 262.8828 | R144: 0 | S144: -2.1
C145: 1999-01-06T11:30:00 | D145: 1 | E145: 6 | F145: 12 | G145: 3 | H145: všední | I145: -0.7 | J145: -0.7 | K145: 324 | L145: 2476.116 | M145: 1238.058 | N145: 990.4464 | O145: 817.11828 | P145: 495.2232 | Q145: 247.6116 | R145: 0 | S145: -0.7
C146: 1999-01-06T12:30:00 | D146: 1 | E146: 6 | F146: 13 | G146: 3 | H146: všední | I146: -0.1 | J146: -0.1 | K146: 324 | L146: 2410.668 | M146: 1205.334 | N146: 964.2672 | O146: 795.52044 | P146: 482.1336 | Q146: 241.0668 | R146: 0 | S146: -0.1
C147: 1999-01-06T13:30:00 | D147: 1 | E147: 6 | F147: 14 | G147: 3 | H147: všední | I147: 0.4 | J147: 0.4 | K147: 162 | L147: 1178.064 | M147: 589.032 | N147: 471.2256 | O147: 388.76112 | P147: 235.6128 | Q147: 117.8064 | R147: 0 | S147: 0.4
C148: 1999-01-06T14:30:00 | D148: 1 | E148: 6 | F148: 15 | G148: 3 | H148: všední | I148: -0.1 | L148: 0 | M148: 0 | N148: 0 | O148: 0 | P148: 0 | Q148: 0 | R148: 0 | S148: -0.1
C149: 1999-01-06T15:30:00 | D149: 1 | E149: 6 | F149: 16 | G149: 3 | H149: všední | I149: -0.2 | L149: 0 | M149: 0 | N149: 0 | O149: 0 | P149: 0 | Q149: 0 | R149: 0 | S149: -0.2
C150: 1999-01-06T16:30:00 | D150: 1 | E150: 6 | F150: 17 | G150: 3 | H150: všední | I150: -0.1 | L150: 0 | M150: 0 | N150: 0 | O150: 0 | P150: 0 | Q150: 0 | R150: 0 | S150: -0.1
C151: 1999-01-06T17:30:00 | D151: 1 | E151: 6 | F151: 18 | G151: 3 | H151: všední | I151: -0.2 | L151: 0 | M151: 0 | N151: 0 | O151: 0 | P151: 0 | Q151: 0 | R151: 0 | S151: -0.2
C152: 1999-01-06T18:30:00 | D152: 1 | E152: 6 | F152: 19 | G152: 3 | H152: všední | I152: 0.1 | L152: 0 | M152: 0 | N152: 0 | O152: 0 | P152: 0 | Q152: 0 | R152: 0 | S152: 0.1
C153: 1999-01-06T19:30:00 | D153: 1 | E153: 6 | F153: 20 | G153: 3 | H153: všední | I153: -0.2 | L153: 0 | M153: 0 | N153: 0 | O153: 0 | P153: 0 | Q153: 0 | R153: 0 | S153: -0.2
C154: 1999-01-06T20:30:00 | D154: 1 | E154: 6 | F154: 21 | G154: 3 | H154: všední | I154: -0.3 | L154: 0 | M154: 0 | N154: 0 | O154: 0 | P154: 0 | Q154: 0 | R154: 0 | S154: -0.3
C155: 1999-01-06T21:30:00 | D155: 1 | E155: 6 | F155: 22 | G155: 3 | H155: všední | I155: -0.9 | L155: 0 | M155: 0 | N155: 0 | O155: 0 | P155: 0 | Q155: 0 | R155: 0 | S155: -0.9
C156: 1999-01-06T22:30:00 | D156: 1 | E156: 6 | F156: 23 | G156: 3 | H156: všední | I156: -0.6 | L156: 0 | M156: 0 | N156: 0 | O156: 0 | P156: 0 | Q156: 0 | R156: 0 | S156: -0.6
C157: 1999-01-06T23:30:00 | D157: 1 | E157: 6 | F157: 24 | G157: 3 | H157: všední | I157: -0.4 | L157: 0 | M157: 0 | N157: 0 | O157: 0 | P157: 0 | Q157: 0 | R157: 0 | S157: -0.4
C158: 1999-01-07T00:30:00 | D158: 1 | E158: 7 | F158: 1 | G158: 4 | H158: všední | I158: -0.1 | L158: 0 | M158: =IF($K158="",0,$K158/3600*1.2*1010*($L$1-(M$11/100*($L$1-$I158)+$I158))) -> 0 | N158: 0 | O158: 0 | P158: 0 | Q158: 0 | R158: 0 | S158: -0.1
C159: 1999-01-07T01:30:00 | D159: 1 | E159: 7 | F159: 2 | G159: 4 | H159: všední | I159: 0 | L159: 0 | M159: 0 | N159: 0 | O159: 0 | P159: 0 | Q159: 0 | R159: 0 | S159: 0
C160: 1999-01-07T02:30:00 | D160: 1 | E160: 7 | F160: 3 | G160: 4 | H160: všední | I160: 0 | L160: 0 | M160: 0 | N160: 0 | O160: 0 | P160: 0 | Q160: 0 | R160: 0 | S160: 0
C161: 1999-01-07T03:30:00 | D161: 1 | E161: 7 | F161: 4 | G161: 4 | H161: všední | I161: 0.1 | L161: 0 | M161: 0 | N161: 0 | O161: 0 | P161: 0 | Q161: 0 | R161: 0 | S161: 0.1
C162: 1999-01-07T04:30:00 | D162: 1 | E162: 7 | F162: 5 | G162: 4 | H162: všední | I162: 0.1 | L162: 0 | M162: 0 | N162: 0 | O162: 0 | P162: 0 | Q162: 0 | R162: 0 | S162: 0.1
C163: 1999-01-07T05:30:00 | D163: 1 | E163: 7 | F163: 6 | G163: 4 | H163: všední | I163: -0.1 | L163: 0 | M163: 0 | N163: 0 | O163: 0 | P163: 0 | Q163: 0 | R163: 0 | S163: -0.1
C164: 1999-01-07T06:30:00 | D164: 1 | E164: 7 | F164: 7 | G164: 4 | H164: všední | I164: -0.5 | L164: 0 | M164: 0 | N164: 0 | O164: 0 | P164: 0 | Q164: 0 | R164: 0 | S164: -0.5
C165: 1999-01-07T07:30:00 | D165: 1 | E165: 7 | F165: 8 | G165: 4 | H165: všední | I165: -0.2 | J165: -0.2 | K165: 162 | L165: 1210.788 | M165: 605.394 | N165: 484.3152 | O165: 399.56004 | P165: 242.1576 | Q165: 121.0788 | R165: 0 | S165: -0.2
C166: 1999-01-07T08:30:00 | D166: 1 | E166: 7 | F166: 9 | G166: 4 | H166: všední | I166: 0.3 | J166: 0.3 | K166: 324 | L166: 2367.036 | M166: 1183.518 | N166: 946.8144 | O166: 781.12188 | P166: 473.4072 | Q166: 236.7036 | R166: 0 | S166: 0.3
C167: 1999-01-07T09:30:00 | D167: 1 | E167: 7 | F167: =F143 -> 10 | G167: 4 | H167: všední | I167: 0.9 | J167: 0.9 | K167: 324 | L167: 2301.588 | M167: 1150.794 | N167: 920.6352 | O167: 759.52404 | P167: 460.3176 | Q167: 230.1588 | R167: 0 | S167: 0.9
C168: 1999-01-07T10:30:00 | D168: 1 | E168: 7 | F168: 11 | G168: 4 | H168: všední | I168: 1 | J168: 1 | K168: 324 | L168: 2290.68 | M168: 1145.34 | N168: 916.272 | O168: 755.9244 | P168: 458.136 | Q168: 229.068 | R168: 0 | S168: 1
C169: 1999-01-07T11:30:00 | D169: 1 | E169: 7 | F169: 12 | G169: 4 | H169: všední | I169: 0.9 | J169: 0.9 | K169: 324 | L169: 2301.588 | M169: 1150.794 | N169: 920.6352 | O169: 759.52404 | P169: 460.3176 | Q169: 230.1588 | R169: 0 | S169: 0.9
C170: 1999-01-07T12:30:00 | D170: 1 | E170: 7 | F170: 13 | G170: 4 | H170: všední | I170: -0.7 | J170: -0.7 | K170: 324 | L170: 2476.116 | M170: 1238.058 | N170: 990.4464 | O170: 817.11828 | P170: 495.2232 | Q170: 247.6116 | R170: 0 | S170: -0.7
C171: 1999-01-07T13:30:00 | D171: 1 | E171: 7 | F171: 14 | G171: 4 | H171: všední | I171: 0.1 | J171: 0.1 | K171: 162 | L171: 1194.426 | M171: 597.213 | N171: 477.7704 | O171: 394.16058 | P171: 238.8852 | Q171: 119.4426 | R171: 0 | S171: 0.1
C172: 1999-01-07T14:30:00 | D172: 1 | E172: 7 | F172: 15 | G172: 4 | H172: všední | I172: -0.8 | L172: 0 | M172: 0 | N172: 0 | O172: 0 | P172: 0 | Q172: 0 | R172: 0 | S172: -0.8
C173: 1999-01-07T15:30:00 | D173: 1 | E173: 7 | F173: 16 | G173: 4 | H173: všední | I173: -1.1 | L173: 0 | M173: 0 | N173: 0 | O173: 0 | P173: 0 | Q173: 0 | R173: 0 | S173: -1.1
C174: 1999-01-07T16:30:00 | D174: 1 | E174: 7 | F174: 17 | G174: 4 | H174: všední | I174: -2.1 | L174: 0 | M174: =IF($K174="",0,$K174/3600*1.2*1010*($L$1-(M$11/100*($L$1-$I174)+$I174))) -> 0 | N174: 0 | O174: 0 | P174: 0 | Q174: 0 | R174: 0 | S174: -2.1
C175: 1999-01-07T17:30:00 | D175: 1 | E175: 7 | F175: 18 | G175: 4 | H175: všední | I175: -3.1 | L175: 0 | M175: 0 | N175: 0 | O175: 0 | P175: 0 | Q175: 0 | R175: 0 | S175: -3.1
C176: 1999-01-07T18:30:00 | D176: 1 | E176: 7 | F176: 19 | G176: 4 | H176: všední | I176: -3.4 | L176: 0 | M176: 0 | N176: 0 | O176: 0 | P176: 0 | Q176: 0 | R176: 0 | S176: -3.4
C177: 1999-01-07T19:30:00 | D177: 1 | E177: 7 | F177: 20 | G177: 4 | H177: všední | I177: -2.4 | L177: 0 | M177: 0 | N177: 0 | O177: 0 | P177: 0 | Q177: 0 | R177: 0 | S177: -2.4
C178: 1999-01-07T20:30:00 | D178: 1 | E178: 7 | F178: 21 | G178: 4 | H178: všední | I178: -2.5 | L178: 0 | M178: 0 | N178: 0 | O178: 0 | P178: 0 | Q178: 0 | R178: 0 | S178: -2.5
C179: 1999-01-07T21:30:00 | D179: 1 | E179: 7 | F179: 22 | G179: 4 | H179: všední | I179: -3.9 | L179: 0 | M179: 0 | N179: 0 | O179: 0 | P179: 0 | Q179: 0 | R179: 0 | S179: -3.9
C180: 1999-01-07T22:30:00 | D180: 1 | E180: 7 | F180: 23 | G180: 4 | H180: všední | I180: -4.3 | L180: 0 | M180: 0 | N180: 0 | O180: 0 | P180: 0 | Q180: 0 | R180: 0 | S180: -4.3
C181: 1999-01-07T23:30:00 | D181: 1 | E181: 7 | F181: 24 | G181: 4 | H181: všední | I181: -4.6 | L181: 0 | M181: 0 | N181: 0 | O181: 0 | P181: 0 | Q181: 0 | R181: 0 | S181: -4.6
C182: 1999-01-08T00:30:00 | D182: 1 | E182: 8 | F182: 1 | G182: 5 | H182: všední | I182: -5 | L182: 0 | M182: 0 | N182: 0 | O182: 0 | P182: 0 | Q182: 0 | R182: 0 | S182: -5
C183: 1999-01-08T01:30:00 | D183: 1 | E183: 8 | F183: 2 | G183: 5 | H183: všední | I183: -4.8 | L183: 0 | M183: 0 | N183: 0 | O183: 0 | P183: 0 | Q183: 0 | R183: 0 | S183: -4.8
C184: 1999-01-08T02:30:00 | D184: 1 | E184: 8 | F184: 3 | G184: 5 | H184: všední | I184: -4.5 | L184: 0 | M184: 0 | N184: 0 | O184: 0 | P184: 0 | Q184: 0 | R184: 0 | S184: -4.5
C185: 1999-01-08T03:30:00 | D185: 1 | E185: 8 | F185: 4 | G185: 5 | H185: všední | I185: -4.3 | L185: 0 | M185: 0 | N185: 0 | O185: 0 | P185: 0 | Q185: 0 | R185: 0 | S185: -4.3
C186: 1999-01-08T04:30:00 | D186: 1 | E186: 8 | F186: 5 | G186: 5 | H186: všední | I186: -4 | L186: 0 | M186: 0 | N186: 0 | O186: 0 | P186: 0 | Q186: 0 | R186: 0 | S186: -4
C187: 1999-01-08T05:30:00 | D187: 1 | E187: 8 | F187: 6 | G187: 5 | H187: všední | I187: -3.8 | L187: 0 | M187: 0 | N187: 0 | O187: 0 | P187: 0 | Q187: 0 | R187: 0 | S187: -3.8
C188: 1999-01-08T06:30:00 | D188: 1 | E188: 8 | F188: 7 | G188: 5 | H188: všední | I188: -3.7 | L188: 0 | M188: 0 | N188: 0 | O188: 0 | P188: 0 | Q188: 0 | R188: 0 | S188: -3.7
C189: 1999-01-08T07:30:00 | D189: 1 | E189: 8 | F189: 8 | G189: 5 | H189: všední | I189: -3.6 | J189: -3.6 | K189: 162 | L189: 1396.224 | M189: 698.112 | N189: 558.4896 | O189: 460.75392 | P189: 279.2448 | Q189: 139.6224 | R189: 0 | S189: -3.6
C190: 1999-01-08T08:30:00 | D190: 1 | E190: 8 | F190: 9 | G190: 5 | H190: všední | I190: -3.3 | J190: -3.3 | K190: 324 | L190: 2759.724 | M190: =IF($K190="",0,$K190/3600*1.2*1010*($L$1-(M$11/100*($L$1-$I190)+$I190))) -> 1379.862 | N190: 1103.8896 | O190: 910.70892 | P190: 551.9448 | Q190: 275.9724 | R190: 0 | S190: -3.3
C191: 1999-01-08T09:30:00 | D191: 1 | E191: 8 | F191: 10 | G191: 5 | H191: všední | I191: -2.6 | J191: -2.6 | K191: 324 | L191: 2683.368 | M191: 1341.684 | N191: 1073.3472 | O191: 885.51144 | P191: 536.6736 | Q191: 268.3368 | R191: 0 | S191: -2.6
C192: 1999-01-08T10:30:00 | D192: 1 | E192: 8 | F192: 11 | G192: 5 | H192: všední | I192: -2.1 | J192: -2.1 | K192: 324 | L192: 2628.828 | M192: 1314.414 | N192: 1051.5312 | O192: 867.51324 | P192: 525.7656 | Q192: 262.8828 | R192: 0 | S192: -2.1
C193: 1999-01-08T11:30:00 | D193: 1 | E193: 8 | F193: 12 | G193: 5 | H193: všední | I193: -2.1 | J193: -2.1 | K193: 324 | L193: 2628.828 | M193: 1314.414 | N193: 1051.5312 | O193: 867.51324 | P193: 525.7656 | Q193: 262.8828 | R193: 0 | S193: -2.1
C194: 1999-01-08T12:30:00 | D194: 1 | E194: 8 | F194: 13 | G194: 5 | H194: všední | I194: -1.4 | J194: -1.4 | K194: 324 | L194: 2552.472 | M194: 1276.236 | N194: 1020.9888 | O194: 842.31576 | P194: 510.4944 | Q194: 255.2472 | R194: 0 | S194: -1.4
C195: 1999-01-08T13:30:00 | D195: 1 | E195: 8 | F195: 14 | G195: 5 | H195: všední | I195: -1.1 | J195: -1.1 | K195: 162 | L195: 1259.874 | M195: 629.937 | N195: 503.9496 | O195: 415.75842 | P195: 251.9748 | Q195: 125.9874 | R195: 0 | S195: -1.1
C196: 1999-01-08T14:30:00 | D196: 1 | E196: 8 | F196: 15 | G196: 5 | H196: všední | I196: -0.9 | L196: 0 | M196: 0 | N196: 0 | O196: 0 | P196: 0 | Q196: 0 | R196: 0 | S196: -0.9
C197: 1999-01-08T15:30:00 | D197: 1 | E197: 8 | F197: 16 | G197: 5 | H197: všední | I197: -1.4 | L197: 0 | M197: 0 | N197: 0 | O197: 0 | P197: 0 | Q197: 0 | R197: 0 | S197: -1.4
C198: 1999-01-08T16:30:00 | D198: 1 | E198: 8 | F198: 17 | G198: 5 | H198: všední | I198: -2.6 | L198: 0 | M198: 0 | N198: 0 | O198: 0 | P198: 0 | Q198: 0 | R198: 0 | S198: -2.6
C199: 1999-01-08T17:30:00 | D199: 1 | E199: 8 | F199: 18 | G199: 5 | H199: všední | I199: -2.1 | L199: 0 | M199: 0 | N199: 0 | O199: 0 | P199: 0 | Q199: 0 | R199: 0 | S199: -2.1
C200: 1999-01-08T18:30:00 | D200: 1 | E200: 8 | F200: 19 | G200: 5 | H200: všední | I200: -1.8 | L200: 0 | M200: 0 | N200: 0 | O200: 0 | P200: 0 | Q200: 0 | R200: 0 | S200: -1.8
... 4300 more rows

Sheet Data
D3: Hodina | E3: od | F3: 8
E4: do | F4: 14
L6: Výkon | N6: =+MAX(N9:N8768) -> 0
L7: Potřeba tepla | N7: =+SUM(N9:N8768) -> 0 | O7: =+SUM(O9:O8768) -> 0
D8: Date | E8: M | F8: D | G8: H | H8: DT | I8: všední/víkend | J8: te | M8: ti | N8: Q | O8: Q
A9: 1 | B9: 00:30:00 | C9: 1999-01-01 | D9: =C9+B9 -> 1999-01-01T00:30:00 | E9: 1 | F9: 1 | G9: 1 | H9: =WEEKDAY(D9-1) -> 5 | I9: =IF(OR(E9=7,E9=8),"prázdniny",(IF(H9=6,"víkend",IF(H9=7,"víkend",IF(AND(E9=1,F9=1),"prázdniny","všední"))))) -> prázdniny | J9: -4.55
A10: 2 | D10: =D9+1/24 -> 1999-01-01T01:30:00 | E10: 1 | F10: 1 | G10: 2 | H10: =WEEKDAY(D10-1) -> 5 | I10: =IF(OR(E10=7,E10=8),"prázdniny",(IF(H10=6,"víkend",IF(H10=7,"víkend",IF(AND(E10=1,F10=1),"prázdniny","všední"))))) -> prázdniny | J10: -5.8
A11: 3 | D11: =D10+1/24 -> 1999-01-01T02:30:00 | E11: 1 | F11: 1 | G11: 3 | H11: 5 | I11: prázdniny | J11: -5.9
A12: 4 | D12: 1999-01-01T03:30:00 | E12: 1 | F12: 1 | G12: 4 | H12: 5 | I12: prázdniny | J12: -6.1
A13: 5 | D13: 1999-01-01T04:30:00 | E13: 1 | F13: 1 | G13: 5 | H13: 5 | I13: prázdniny | J13: -6.6
A14: 6 | D14: 1999-01-01T05:30:00 | E14: 1 | F14: 1 | G14: 6 | H14: 5 | I14: prázdniny | J14: -6.6
A15: 7 | D15: 1999-01-01T06:30:00 | E15: 1 | F15: 1 | G15: 7 | H15: 5 | I15: prázdniny | J15: -6.8
A16: 8 | D16: 1999-01-01T07:30:00 | E16: 1 | F16: 1 | G16: 8 | H16: 5 | I16: prázdniny | J16: -7
A17: 9 | D17: 1999-01-01T08:30:00 | E17: 1 | F17: 1 | G17: 9 | H17: 5 | I17: prázdniny | J17: -6.9
A18: 10 | D18: 1999-01-01T09:30:00 | E18: 1 | F18: 1 | G18: 10 | H18: 5 | I18: prázdniny | J18: -6.6
A19: 11 | D19: 1999-01-01T10:30:00 | E19: 1 | F19: 1 | G19: 11 | H19: 5 | I19: prázdniny | J19: -6.3
A20: 12 | D20: 1999-01-01T11:30:00 | E20: 1 | F20: 1 | G20: 12 | H20: 5 | I20: prázdniny | J20: -5.4
A21: 13 | D21: 1999-01-01T12:30:00 | E21: 1 | F21: 1 | G21: 13 | H21: 5 | I21: prázdniny | J21: -5.7
A22: 14 | D22: 1999-01-01T13:30:00 | E22: 1 | F22: 1 | G22: 14 | H22: 5 | I22: prázdniny | J22: -5.5
A23: 15 | D23: 1999-01-01T14:30:00 | E23: 1 | F23: 1 | G23: 15 | H23: 5 | I23: prázdniny | J23: -5.5
A24: 16 | D24: 1999-01-01T15:30:00 | E24: 1 | F24: 1 | G24: 16 | H24: 5 | I24: prázdniny | J24: -5.6
A25: 17 | D25: 1999-01-01T16:30:00 | E25: 1 | F25: 1 | G25: 17 | H25: 5 | I25: prázdniny | J25: -5.1
A26: 18 | D26: 1999-01-01T17:30:00 | E26: 1 | F26: 1 | G26: 18 | H26: 5 | I26: prázdniny | J26: -5
A27: 19 | D27: 1999-01-01T18:30:00 | E27: 1 | F27: 1 | G27: 19 | H27: 5 | I27: prázdniny | J27: -4.9
A28: 20 | D28: 1999-01-01T19:30:00 | E28: 1 | F28: 1 | G28: 20 | H28: 5 | I28: prázdniny | J28: -4.5
A29: 21 | D29: 1999-01-01T20:30:00 | E29: 1 | F29: 1 | G29: 21 | H29: 5 | I29: prázdniny | J29: -4.6
A30: 22 | D30: 1999-01-01T21:30:00 | E30: 1 | F30: 1 | G30: 22 | H30: 5 | I30: prázdniny | J30: -4.2
A31: 23 | D31: 1999-01-01T22:30:00 | E31: 1 | F31: 1 | G31: 23 | H31: 5 | I31: prázdniny | J31: -4.4
A32: 24 | D32: 1999-01-01T23:30:00 | E32: 1 | F32: 1 | G32: 24 | H32: 5 | I32: prázdniny | J32: -4.6
A33: 25 | D33: 1999-01-02T00:30:00 | E33: 1 | F33: 2 | G33: =G9 -> 1 | H33: 6 | I33: víkend | J33: -4.8
A34: 26 | D34: 1999-01-02T01:30:00 | E34: 1 | F34: 2 | G34: =G10 -> 2 | H34: 6 | I34: víkend | J34: -5.2
A35: 27 | D35: 1999-01-02T02:30:00 | E35: 1 | F35: 2 | G35: 3 | H35: 6 | I35: víkend | J35: -5.5
A36: 28 | D36: 1999-01-02T03:30:00 | E36: 1 | F36: 2 | G36: 4 | H36: 6 | I36: víkend | J36: -5.9
A37: 29 | D37: 1999-01-02T04:30:00 | E37: 1 | F37: 2 | G37: 5 | H37: 6 | I37: víkend | J37: -6.7
A38: 30 | D38: 1999-01-02T05:30:00 | E38: 1 | F38: 2 | G38: 6 | H38: 6 | I38: víkend | J38: -6.7
A39: 31 | D39: 1999-01-02T06:30:00 | E39: 1 | F39: 2 | G39: 7 | H39: 6 | I39: víkend | J39: -6.6
A40: 32 | D40: 1999-01-02T07:30:00 | E40: 1 | F40: 2 | G40: 8 | H40: 6 | I40: víkend | J40: -6.7
A41: 33 | D41: 1999-01-02T08:30:00 | E41: 1 | F41: 2 | G41: 9 | H41: 6 | I41: víkend | J41: -6.2
A42: 34 | D42: 1999-01-02T09:30:00 | E42: 1 | F42: 2 | G42: 10 | H42: 6 | I42: víkend | J42: -5
A43: 35 | D43: 1999-01-02T10:30:00 | E43: 1 | F43: 2 | G43: 11 | H43: 6 | I43: víkend | J43: -4.9
A44: 36 | D44: 1999-01-02T11:30:00 | E44: 1 | F44: 2 | G44: 12 | H44: 6 | I44: víkend | J44: -3.6
A45: 37 | D45: 1999-01-02T12:30:00 | E45: 1 | F45: 2 | G45: 13 | H45: 6 | I45: víkend | J45: -2.5
A46: 38 | D46: 1999-01-02T13:30:00 | E46: 1 | F46: 2 | G46: 14 | H46: 6 | I46: víkend | J46: -1.7
A47: 39 | D47: 1999-01-02T14:30:00 | E47: 1 | F47: 2 | G47: 15 | H47: 6 | I47: víkend | J47: -1.2
A48: 40 | D48: 1999-01-02T15:30:00 | E48: 1 | F48: 2 | G48: 16 | H48: 6 | I48: víkend | J48: -1
A49: 41 | D49: 1999-01-02T16:30:00 | E49: 1 | F49: 2 | G49: 17 | H49: 6 | I49: víkend | J49: -0.7
A50: 42 | D50: 1999-01-02T17:30:00 | E50: 1 | F50: 2 | G50: 18 | H50: 6 | I50: víkend | J50: -0.5
A51: 43 | D51: 1999-01-02T18:30:00 | E51: 1 | F51: 2 | G51: 19 | H51: 6 | I51: víkend | J51: -0.4
A52: 44 | D52: 1999-01-02T19:30:00 | E52: 1 | F52: 2 | G52: 20 | H52: 6 | I52: víkend | J52: -0.2
A53: 45 | D53: 1999-01-02T20:30:00 | E53: 1 | F53: 2 | G53: 21 | H53: 6 | I53: víkend | J53: -0.2
A54: 46 | D54: 1999-01-02T21:30:00 | E54: 1 | F54: 2 | G54: 22 | H54: 6 | I54: víkend | J54: -0.1
A55: 47 | D55: 1999-01-02T22:30:00 | E55: 1 | F55: 2 | G55: 23 | H55: 6 | I55: víkend | J55: 0.1
A56: 48 | D56: 1999-01-02T23:30:00 | E56: 1 | F56: 2 | G56: 24 | H56: 6 | I56: víkend | J56: 0.3
A57: 49 | D57: 1999-01-03T00:30:00 | E57: 1 | F57: 3 | G57: 1 | H57: 7 | I57: víkend | J57: 0.5
A58: 50 | D58: 1999-01-03T01:30:00 | E58: 1 | F58: 3 | G58: 2 | H58: 7 | I58: víkend | J58: 0.4
A59: 51 | D59: 1999-01-03T02:30:00 | E59: 1 | F59: 3 | G59: 3 | H59: 7 | I59: víkend | J59: 0.2
A60: 52 | D60: 1999-01-03T03:30:00 | E60: 1 | F60: 3 | G60: 4 | H60: 7 | I60: víkend | J60: 0.1
A61: 53 | D61: 1999-01-03T04:30:00 | E61: 1 | F61: 3 | G61: 5 | H61: 7 | I61: víkend | J61: 0.4
A62: 54 | D62: 1999-01-03T05:30:00 | E62: 1 | F62: 3 | G62: 6 | H62: 7 | I62: víkend | J62: 0.6
A63: 55 | D63: 1999-01-03T06:30:00 | E63: 1 | F63: 3 | G63: 7 | H63: 7 | I63: víkend | J63: 0.7
A64: 56 | D64: 1999-01-03T07:30:00 | E64: 1 | F64: 3 | G64: 8 | H64: 7 | I64: víkend | J64: 1.3
A65: 57 | D65: 1999-01-03T08:30:00 | E65: 1 | F65: 3 | G65: 9 | H65: 7 | I65: víkend | J65: 1.8
A66: 58 | D66: 1999-01-03T09:30:00 | E66: 1 | F66: 3 | G66: 10 | H66: 7 | I66: víkend | J66: 2.5
A67: 59 | D67: 1999-01-03T10:30:00 | E67: 1 | F67: 3 | G67: 11 | H67: 7 | I67: víkend | J67: 3.3
A68: 60 | D68: 1999-01-03T11:30:00 | E68: 1 | F68: 3 | G68: 12 | H68: 7 | I68: víkend | J68: 3.6
A69: 61 | D69: 1999-01-03T12:30:00 | E69: 1 | F69: 3 | G69: 13 | H69: 7 | I69: víkend | J69: 5.6
A70: 62 | D70: 1999-01-03T13:30:00 | E70: 1 | F70: 3 | G70: 14 | H70: 7 | I70: víkend | J70: 5.9
A71: 63 | D71: 1999-01-03T14:30:00 | E71: 1 | F71: 3 | G71: 15 | H71: 7 | I71: víkend | J71: 5.3
A72: 64 | D72: 1999-01-03T15:30:00 | E72: 1 | F72: 3 | G72: 16 | H72: 7 | I72: víkend | J72: 4.7
A73: 65 | D73: 1999-01-03T16:30:00 | E73: 1 | F73: 3 | G73: 17 | H73: 7 | I73: víkend | J73: 3.3
A74: 66 | D74: 1999-01-03T17:30:00 | E74: 1 | F74: 3 | G74: 18 | H74: =WEEKDAY(D74-1) -> 7 | I74: =IF(OR(E74=7,E74=8),"prázdniny",(IF(H74=6,"víkend",IF(H74=7,"víkend",IF(AND(E74=1,F74=1),"prázdniny","všední"))))) -> víkend | J74: 3.2
A75: 67 | D75: =D74+1/24 -> 1999-01-03T18:30:00 | E75: 1 | F75: 3 | G75: 19 | H75: 7 | I75: víkend | J75: 3.2
A76: 68 | D76: 1999-01-03T19:30:00 | E76: 1 | F76: 3 | G76: 20 | H76: 7 | I76: víkend | J76: 2.8
A77: 69 | D77: 1999-01-03T20:30:00 | E77: 1 | F77: 3 | G77: 21 | H77: 7 | I77: víkend | J77: 2.2
A78: 70 | D78: 1999-01-03T21:30:00 | E78: 1 | F78: 3 | G78: 22 | H78: 7 | I78: víkend | J78: 2
A79: 71 | D79: 1999-01-03T22:30:00 | E79: 1 | F79: 3 | G79: 23 | H79: 7 | I79: víkend | J79: 1.5
A80: 72 | D80: 1999-01-03T23:30:00 | E80: 1 | F80: 3 | G80: 24 | H80: 7 | I80: víkend | J80: 1.1
A81: 73 | D81: 1999-01-04T00:30:00 | E81: 1 | F81: 4 | G81: 1 | H81: 1 | I81: všední | J81: 0.6
A82: 74 | D82: 1999-01-04T01:30:00 | E82: 1 | F82: 4 | G82: 2 | H82: 1 | I82: všední | J82: 0.4
A83: 75 | D83: 1999-01-04T02:30:00 | E83: 1 | F83: 4 | G83: 3 | H83: 1 | I83: všední | J83: 0.3
A84: 76 | D84: 1999-01-04T03:30:00 | E84: 1 | F84: 4 | G84: 4 | H84: 1 | I84: všední | J84: 0.1
A85: 77 | D85: 1999-01-04T04:30:00 | E85: 1 | F85: 4 | G85: 5 | H85: 1 | I85: všední | J85: 0
A86: 78 | D86: 1999-01-04T05:30:00 | E86: 1 | F86: 4 | G86: 6 | H86: 1 | I86: všední | J86: -0.4
A87: 79 | D87: 1999-01-04T06:30:00 | E87: 1 | F87: 4 | G87: 7 | H87: 1 | I87: všední | J87: -0.3
A88: 80 | D88: 1999-01-04T07:30:00 | E88: 1 | F88: 4 | G88: 8 | H88: 1 | I88: všední | J88: -0.1
A89: 81 | D89: 1999-01-04T08:30:00 | E89: 1 | F89: 4 | G89: 9 | H89: 1 | I89: všední | J89: -0.4
A90: 82 | D90: 1999-01-04T09:30:00 | E90: 1 | F90: 4 | G90: 10 | H90: 1 | I90: všední | J90: -0.8
A91: 83 | D91: 1999-01-04T10:30:00 | E91: 1 | F91: 4 | G91: 11 | H91: 1 | I91: všední | J91: -1.6
A92: 84 | D92: 1999-01-04T11:30:00 | E92: 1 | F92: 4 | G92: 12 | H92: 1 | I92: všední | J92: -2
A93: 85 | D93: 1999-01-04T12:30:00 | E93: 1 | F93: 4 | G93: 13 | H93: 1 | I93: všední | J93: -1.8
A94: 86 | D94: 1999-01-04T13:30:00 | E94: 1 | F94: 4 | G94: 14 | H94: 1 | I94: všední | J94: -0.6
A95: 87 | D95: 1999-01-04T14:30:00 | E95: 1 | F95: 4 | G95: 15 | H95: 1 | I95: všední | J95: -0.4
A96: 88 | D96: 1999-01-04T15:30:00 | E96: 1 | F96: 4 | G96: 16 | H96: 1 | I96: všední | J96: -1.7
A97: 89 | D97: 1999-01-04T16:30:00 | E97: 1 | F97: 4 | G97: 17 | H97: 1 | I97: všední | J97: -1.8
A98: 90 | D98: 1999-01-04T17:30:00 | E98: 1 | F98: 4 | G98: =G74 -> 18 | H98: 1 | I98: všední | J98: -2.3
A99: 91 | D99: 1999-01-04T18:30:00 | E99: 1 | F99: 4 | G99: 19 | H99: 1 | I99: všední | J99: -2.6
A100: 92 | D100: 1999-01-04T19:30:00 | E100: 1 | F100: 4 | G100: 20 | H100: 1 | I100: všední | J100: -2.8
A101: 93 | D101: 1999-01-04T20:30:00 | E101: 1 | F101: 4 | G101: 21 | H101: 1 | I101: všední | J101: -3
A102: 94 | D102: 1999-01-04T21:30:00 | E102: 1 | F102: 4 | G102: 22 | H102: 1 | I102: všední | J102: -0.3
A103: 95 | D103: 1999-01-04T22:30:00 | E103: 1 | F103: 4 | G103: 23 | H103: 1 | I103: všední | J103: -1.5
A104: 96 | D104: 1999-01-04T23:30:00 | E104: 1 | F104: 4 | G104: 24 | H104: 1 | I104: všední | J104: -2.8
A105: 97 | D105: 1999-01-05T00:30:00 | E105: 1 | F105: 5 | G105: 1 | H105: 2 | I105: všední | J105: -4
A106: 98 | D106: 1999-01-05T01:30:00 | E106: 1 | F106: 5 | G106: 2 | H106: 2 | I106: všední | J106: -3.4
A107: 99 | D107: 1999-01-05T02:30:00 | E107: 1 | F107: 5 | G107: 3 | H107: 2 | I107: všední | J107: -2.8
A108: 100 | D108: 1999-01-05T03:30:00 | E108: 1 | F108: 5 | G108: 4 | H108: 2 | I108: všední | J108: -2.2
A109: 101 | D109: 1999-01-05T04:30:00 | E109: 1 | F109: 5 | G109: 5 | H109: 2 | I109: všední | J109: -2.3
A110: 102 | D110: 1999-01-05T05:30:00 | E110: 1 | F110: 5 | G110: 6 | H110: 2 | I110: všední | J110: -2.1
A111: 103 | D111: 1999-01-05T06:30:00 | E111: 1 | F111: 5 | G111: 7 | H111: 2 | I111: všední | J111: -3.8
A112: 104 | D112: 1999-01-05T07:30:00 | E112: 1 | F112: 5 | G112: 8 | H112: 2 | I112: všední | J112: -4.8
A113: 105 | D113: 1999-01-05T08:30:00 | E113: 1 | F113: 5 | G113: 9 | H113: 2 | I113: všední | J113: -4
A114: 106 | D114: 1999-01-05T09:30:00 | E114: 1 | F114: 5 | G114: 10 | H114: 2 | I114: všední | J114: -2
A115: 107 | D115: 1999-01-05T10:30:00 | E115: 1 | F115: 5 | G115: 11 | H115: 2 | I115: všední | J115: -2
A116: 108 | D116: 1999-01-05T11:30:00 | E116: 1 | F116: 5 | G116: 12 | H116: 2 | I116: všední | J116: -1.6
A117: 109 | D117: 1999-01-05T12:30:00 | E117: 1 | F117: 5 | G117: 13 | H117: 2 | I117: všední | J117: 0.9
A118: 110 | D118: 1999-01-05T13:30:00 | E118: 1 | F118: 5 | G118: 14 | H118: 2 | I118: všední | J118: 0
A119: 111 | D119: 1999-01-05T14:30:00 | E119: 1 | F119: 5 | G119: 15 | H119: 2 | I119: všední | J119: 0
A120: 112 | D120: 1999-01-05T15:30:00 | E120: 1 | F120: 5 | G120: 16 | H120: 2 | I120: všední | J120: -0.2
A121: 113 | D121: 1999-01-05T16:30:00 | E121: 1 | F121: 5 | G121: 17 | H121: 2 | I121: všední | J121: -0.3
A122: 114 | D122: 1999-01-05T17:30:00 | E122: 1 | F122: 5 | G122: 18 | H122: 2 | I122: všední | J122: -0.8
A123: 115 | D123: 1999-01-05T18:30:00 | E123: 1 | F123: 5 | G123: 19 | H123: 2 | I123: všední | J123: -1
A124: 116 | D124: 1999-01-05T19:30:00 | E124: 1 | F124: 5 | G124: 20 | H124: 2 | I124: všední | J124: -2.1
A125: 117 | D125: 1999-01-05T20:30:00 | E125: 1 | F125: 5 | G125: 21 | H125: 2 | I125: všední | J125: -2.4
A126: 118 | D126: 1999-01-05T21:30:00 | E126: 1 | F126: 5 | G126: 22 | H126: 2 | I126: všední | J126: -2.4
A127: 119 | D127: 1999-01-05T22:30:00 | E127: 1 | F127: 5 | G127: 23 | H127: 2 | I127: všední | J127: -2.4
A128: 120 | D128: 1999-01-05T23:30:00 | E128: 1 | F128: 5 | G128: 24 | H128: 2 | I128: všední | J128: -2.5
A129: 121 | D129: 1999-01-06T00:30:00 | E129: 1 | F129: 6 | G129: 1 | H129: 3 | I129: všední | J129: -2.5
A130: 122 | D130: 1999-01-06T01:30:00 | E130: 1 | F130: 6 | G130: 2 | H130: 3 | I130: všední | J130: -2.7
A131: 123 | D131: 1999-01-06T02:30:00 | E131: 1 | F131: 6 | G131: 3 | H131: 3 | I131: všední | J131: -2.9
A132: 124 | D132: 1999-01-06T03:30:00 | E132: 1 | F132: 6 | G132: 4 | H132: 3 | I132: všední | J132: -3.1
A133: 125 | D133: 1999-01-06T04:30:00 | E133: 1 | F133: 6 | G133: 5 | H133: 3 | I133: všední | J133: -3
A134: 126 | D134: 1999-01-06T05:30:00 | E134: 1 | F134: 6 | G134: 6 | H134: 3 | I134: všední | J134: -3.4
A135: 127 | D135: 1999-01-06T06:30:00 | E135: 1 | F135: 6 | G135: 7 | H135: 3 | I135: všední | J135: -3.3
A136: 128 | D136: 1999-01-06T07:30:00 | E136: 1 | F136: 6 | G136: 8 | H136: 3 | I136: všední | J136: -3.6
A137: 129 | D137: 1999-01-06T08:30:00 | E137: 1 | F137: 6 | G137: 9 | H137: 3 | I137: všední | J137: -3.1
A138: 130 | D138: 1999-01-06T09:30:00 | E138: 1 | F138: 6 | G138: 10 | H138: =WEEKDAY(D138-1) -> 3 | I138: =IF(OR(E138=7,E138=8),"prázdniny",(IF(H138=6,"víkend",IF(H138=7,"víkend",IF(AND(E138=1,F138=1),"prázdniny","všední"))))) -> všední | J138: -3
A139: 131 | D139: =D138+1/24 -> 1999-01-06T10:30:00 | E139: 1 | F139: 6 | G139: 11 | H139: 3 | I139: všední | J139: -2.1
A140: 132 | D140: 1999-01-06T11:30:00 | E140: 1 | F140: 6 | G140: 12 | H140: 3 | I140: všední | J140: -0.7
A141: 133 | D141: 1999-01-06T12:30:00 | E141: 1 | F141: 6 | G141: 13 | H141: 3 | I141: všední | J141: -0.1
A142: 134 | D142: 1999-01-06T13:30:00 | E142: 1 | F142: 6 | G142: 14 | H142: 3 | I142: všední | J142: 0.4
A143: 135 | D143: 1999-01-06T14:30:00 | E143: 1 | F143: 6 | G143: 15 | H143: 3 | I143: všední | J143: -0.1
A144: 136 | D144: 1999-01-06T15:30:00 | E144: 1 | F144: 6 | G144: 16 | H144: 3 | I144: všední | J144: -0.2
A145: 137 | D145: 1999-01-06T16:30:00 | E145: 1 | F145: 6 | G145: 17 | H145: 3 | I145: všední | J145: -0.1
A146: 138 | D146: 1999-01-06T17:30:00 | E146: 1 | F146: 6 | G146: 18 | H146: 3 | I146: všední | J146: -0.2
A147: 139 | D147: 1999-01-06T18:30:00 | E147: 1 | F147: 6 | G147: 19 | H147: 3 | I147: všední | J147: 0.1
A148: 140 | D148: 1999-01-06T19:30:00 | E148: 1 | F148: 6 | G148: 20 | H148: 3 | I148: všední | J148: -0.2
A149: 141 | D149: 1999-01-06T20:30:00 | E149: 1 | F149: 6 | G149: 21 | H149: 3 | I149: všední | J149: -0.3
A150: 142 | D150: 1999-01-06T21:30:00 | E150: 1 | F150: 6 | G150: 22 | H150: 3 | I150: všední | J150: -0.9
A151: 143 | D151: 1999-01-06T22:30:00 | E151: 1 | F151: 6 | G151: 23 | H151: 3 | I151: všední | J151: -0.6
A152: 144 | D152: 1999-01-06T23:30:00 | E152: 1 | F152: 6 | G152: 24 | H152: 3 | I152: všední | J152: -0.4
A153: 145 | D153: 1999-01-07T00:30:00 | E153: 1 | F153: 7 | G153: 1 | H153: 4 | I153: všední | J153: -0.1
A154: 146 | D154: 1999-01-07T01:30:00 | E154: 1 | F154: 7 | G154: 2 | H154: 4 | I154: všední | J154: 0
A155: 147 | D155: 1999-01-07T02:30:00 | E155: 1 | F155: 7 | G155: 3 | H155: 4 | I155: všední | J155: 0
A156: 148 | D156: 1999-01-07T03:30:00 | E156: 1 | F156: 7 | G156: 4 | H156: 4 | I156: všední | J156: 0.1
A157: 149 | D157: 1999-01-07T04:30:00 | E157: 1 | F157: 7 | G157: 5 | H157: 4 | I157: všední | J157: 0.1
A158: 150 | D158: 1999-01-07T05:30:00 | E158: 1 | F158: 7 | G158: 6 | H158: 4 | I158: všední | J158: -0.1
A159: 151 | D159: 1999-01-07T06:30:00 | E159: 1 | F159: 7 | G159: 7 | H159: 4 | I159: všední | J159: -0.5
A160: 152 | D160: 1999-01-07T07:30:00 | E160: 1 | F160: 7 | G160: 8 | H160: 4 | I160: všední | J160: -0.2
A161: 153 | D161: 1999-01-07T08:30:00 | E161: 1 | F161: 7 | G161: 9 | H161: 4 | I161: všední | J161: 0.3
A162: 154 | D162: 1999-01-07T09:30:00 | E162: 1 | F162: 7 | G162: =G138 -> 10 | H162: 4 | I162: všední | J162: 0.9
A163: 155 | D163: 1999-01-07T10:30:00 | E163: 1 | F163: 7 | G163: 11 | H163: 4 | I163: všední | J163: 1
A164: 156 | D164: 1999-01-07T11:30:00 | E164: 1 | F164: 7 | G164: 12 | H164: 4 | I164: všední | J164: 0.9
A165: 157 | D165: 1999-01-07T12:30:00 | E165: 1 | F165: 7 | G165: 13 | H165: 4 | I165: všední | J165: -0.7
A166: 158 | D166: 1999-01-07T13:30:00 | E166: 1 | F166: 7 | G166: 14 | H166: 4 | I166: všední | J166: 0.1
A167: 159 | D167: 1999-01-07T14:30:00 | E167: 1 | F167: 7 | G167: 15 | H167: 4 | I167: všední | J167: -0.8
A168: 160 | D168: 1999-01-07T15:30:00 | E168: 1 | F168: 7 | G168: 16 | H168: 4 | I168: všední | J168: -1.1
A169: 161 | D169: 1999-01-07T16:30:00 | E169: 1 | F169: 7 | G169: 17 | H169: 4 | I169: všední | J169: -2.1
A170: 162 | D170: 1999-01-07T17:30:00 | E170: 1 | F170: 7 | G170: 18 | H170: 4 | I170: všední | J170: -3.1
A171: 163 | D171: 1999-01-07T18:30:00 | E171: 1 | F171: 7 | G171: 19 | H171: 4 | I171: všední | J171: -3.4
A172: 164 | D172: 1999-01-07T19:30:00 | E172: 1 | F172: 7 | G172: 20 | H172: 4 | I172: všední | J172: -2.4
A173: 165 | D173: 1999-01-07T20:30:00 | E173: 1 | F173: 7 | G173: 21 | H173: 4 | I173: všední | J173: -2.5
A174: 166 | D174: 1999-01-07T21:30:00 | E174: 1 | F174: 7 | G174: 22 | H174: 4 | I174: všední | J174: -3.9
A175: 167 | D175: 1999-01-07T22:30:00 | E175: 1 | F175: 7 | G175: 23 | H175: 4 | I175: všední | J175: -4.3
A176: 168 | D176: 1999-01-07T23:30:00 | E176: 1 | F176: 7 | G176: 24 | H176: 4 | I176: všední | J176: -4.6
A177: 169 | D177: 1999-01-08T00:30:00 | E177: 1 | F177: 8 | G177: 1 | H177: 5 | I177: všední | J177: -5
A178: 170 | D178: 1999-01-08T01:30:00 | E178: 1 | F178: 8 | G178: 2 | H178: 5 | I178: všední | J178: -4.8
A179: 171 | D179: 1999-01-08T02:30:00 | E179: 1 | F179: 8 | G179: 3 | H179: 5 | I179: všední | J179: -4.5
A180: 172 | D180: 1999-01-08T03:30:00 | E180: 1 | F180: 8 | G180: 4 | H180: 5 | I180: všední | J180: -4.3
A181: 173 | D181: 1999-01-08T04:30:00 | E181: 1 | F181: 8 | G181: 5 | H181: 5 | I181: všední | J181: -4
A182: 174 | D182: 1999-01-08T05:30:00 | E182: 1 | F182: 8 | G182: 6 | H182: 5 | I182: všední | J182: -3.8
A183: 175 | D183: 1999-01-08T06:30:00 | E183: 1 | F183: 8 | G183: 7 | H183: 5 | I183: všední | J183: -3.7
A184: 176 | D184: 1999-01-08T07:30:00 | E184: 1 | F184: 8 | G184: 8 | H184: 5 | I184: všední | J184: -3.6
A185: 177 | D185: 1999-01-08T08:30:00 | E185: 1 | F185: 8 | G185: 9 | H185: 5 | I185: všední | J185: -3.3
A186: 178 | D186: 1999-01-08T09:30:00 | E186: 1 | F186: 8 | G186: 10 | H186: 5 | I186: všední | J186: -2.6
A187: 179 | D187: 1999-01-08T10:30:00 | E187: 1 | F187: 8 | G187: 11 | H187: 5 | I187: všední | J187: -2.1
A188: 180 | D188: 1999-01-08T11:30:00 | E188: 1 | F188: 8 | G188: 12 | H188: 5 | I188: všední | J188: -2.1
A189: 181 | D189: 1999-01-08T12:30:00 | E189: 1 | F189: 8 | G189: 13 | H189: 5 | I189: všední | J189: -1.4
A190: 182 | D190: 1999-01-08T13:30:00 | E190: 1 | F190: 8 | G190: 14 | H190: 5 | I190: všední | J190: -1.1
A191: 183 | D191: 1999-01-08T14:30:00 | E191: 1 | F191: 8 | G191: 15 | H191: 5 | I191: všední | J191: -0.9
A192: 184 | D192: 1999-01-08T15:30:00 | E192: 1 | F192: 8 | G192: 16 | H192: 5 | I192: všední | J192: -1.4
A193: 185 | D193: 1999-01-08T16:30:00 | E193: 1 | F193: 8 | G193: 17 | H193: 5 | I193: všední | J193: -2.6
A194: 186 | D194: 1999-01-08T17:30:00 | E194: 1 | F194: 8 | G194: 18 | H194: 5 | I194: všední | J194: -2.1
A195: 187 | D195: 1999-01-08T18:30:00 | E195: 1 | F195: 8 | G195: 19 | H195: 5 | I195: všední | J195: -1.8
A196: 188 | D196: 1999-01-08T19:30:00 | E196: 1 | F196: 8 | G196: 20 | H196: 5 | I196: všední | J196: -2
A197: 189 | D197: 1999-01-08T20:30:00 | E197: 1 | F197: 8 | G197: 21 | H197: 5 | I197: všední | J197: -2.3
A198: 190 | D198: 1999-01-08T21:30:00 | E198: 1 | F198: 8 | G198: 22 | H198: 5 | I198: všední | J198: -3.4
A199: 191 | D199: 1999-01-08T22:30:00 | E199: 1 | F199: 8 | G199: 23 | H199: 5 | I199: všední | J199: -3.7
A200: 192 | D200: 1999-01-08T23:30:00 | E200: 1 | F200: 8 | G200: 24 | H200: 5 | I200: všední | J200: -3.9
A201: 193 | D201: 1999-01-09T00:30:00 | E201: 1 | F201: 9 | G201: 1 | H201: 6 | I201: víkend | J201: -4.2
A202: 194 | D202: 1999-01-09T01:30:00 | E202: 1 | F202: 9 | G202: 2 | H202: =WEEKDAY(D202-1) -> 6 | I202: =IF(OR(E202=7,E202=8),"prázdniny",(IF(H202=6,"víkend",IF(H202=7,"víkend",IF(AND(E202=1,F202=1),"prázdniny","všední"))))) -> víkend | J202: -4.2
A203: 195 | D203: =D202+1/24 -> 1999-01-09T02:30:00 | E203: 1 | F203: 9 | G203: 3 | H203: 6 | I203: víkend | J203: -4.1
... 8565 more rows

Sheet Vyber
A1: Týden
A2: Dní
A3: Start
A5: číslo | B5: Date | C5: te [°C] | D5: ti [°C] | E5: Q [kW]
B6: 4 | C6: 10 | D6: 13 | E6: 14
